Workbook

Sheet BD Personal
A1: Código | B1: Apellidos, Nombres | C1: Cargo | D1: Tipo Contrato | E1: Fecha Ingreso | F1: Fecha Fin de Contrato | G1: Fecha Nacimiento | H1: Sexo | I1: Ubicación | J1: Centro de Costo | K1: Sueldo Básico | L1: Bonificaciones
A2: 00000451 | B2: Parra García, Jerónimo Santiago | C2: Técnico | D2: Plazo indeterminado | E2: 1985-01-06 | G2: 1956-09-08 | H2: M | I2: Local 1 | J2: Gerencia 4 | K2: 3313 | L2: 199
A3: 00000536 | B3: Díaz García, Alexander Pedro | C3: Profesional | D3: Plazo indeterminado | E3: 1986-08-06 | G3: 1962-12-05 | H3: M | I3: Local 1 | J3: Gerencia General | K3: 9376 | L3: 469
A4: 00000596 | B4: Farías Rodríguez, Santiago Dylan | C4: Técnico | D4: Plazo indeterminado | E4: 1988-07-03 | G4: 1962-09-21 | H4: M | I4: Local 2 | J4: Gerencia 3 | K4: 3846 | L4: 385
A5: 00000687 | B5: Rodríguez García, Santiago Rafael | C5: Profesional | D5: Plazo indeterminado | E5: 1989-07-04 | G5: 1961-10-31 | H5: M | I5: Local 2 | J5: Gerencia 1 | K5: 7101 | L5: 497
A6: 00000714 | B6: Soria Fernández, Ramón Rodrigo | C6: Profesional | D6: Plazo indeterminado | E6: 1989-09-01 | G6: 1959-09-15 | H6: M | I6: Local 3 | J6: Gerencia 1 | K6: 5487 | L6: 329
A7: 00000797 | B7: Valenzuela Núñez, Julieta Beatriz | C7: Profesional | D7: Plazo indeterminado | E7: 1992-01-08 | G7: 1966-05-29 | H7: F | I7: Local 2 | J7: Gerencia 4 | K7: 6765 | L7: 474
A8: 00000819 | B8: Mendoza Silva, Benjamín Fabián | C8: Técnico | D8: Plazo indeterminado | E8: 1992-08-25 | G8: 1963-04-17 | H8: M | I8: Local 3 | J8: Gerencia 5 | K8: 4687 | L8: 422
A9: 00000849 | B9: Rodríguez Flores, Iker Tomás | C9: Técnico | D9: Plazo indeterminado | E9: 1992-09-08 | G9: 1966-07-09 | H9: M | I9: Local 3 | J9: Gerencia 2 | K9: 5238 | L9: 471
A10: 00000895 | B10: Espinosa Ferreyra, José Fabricio | C10: Profesional | D10: Plazo indeterminado | E10: 1992-11-04 | G10: 1967-12-22 | H10: M | I10: Local 3 | J10: Gerencia 2 | K10: 5545 | L10: 499
A11: 00000933 | B11: Díaz Saavedra, Álvaro Marcelo | C11: Técnico | D11: Plazo indeterminado | E11: 1993-04-27 | G11: 1963-12-13 | H11: M | I11: Local 2 | J11: Gerencia 5 | K11: 4821 | L11: 241
A12: 00000965 | B12: Morales Riquelme, Sofía Milagros | C12: Profesional | D12: Plazo indeterminado | E12: 1993-08-21 | G12: 1966-08-23 | H12: F | I12: Local 1 | J12: Gerencia 5 | K12: 5480 | L12: 438
A13: 00000995 | B13: Flores Miranda, Daniela Ramona | C13: Profesional | D13: Plazo indeterminado | E13: 1994-01-04 | G13: 1968-01-03 | H13: F | I13: Local 2 | J13: Gerencia 2 | K13: 6058 | L13: 424
A14: 00001018 | B14: Mendoza Venegas, Salomé Fernanda | C14: Técnico | D14: Plazo indeterminado | E14: 1994-01-25 | G14: 1969-08-01 | H14: F | I14: Local 3 | J14: Gerencia 4 | K14: 3412 | L14: 273
A15: 00001024 | B15: Quiroga Bermúdez, Agustina Liz | C15: Técnico | D15: Plazo indeterminado | E15: 1994-03-20 | G15: 1968-05-26 | H15: F | I15: Local 3 | J15: Gerencia 5 | K15: 5944 | L15: 594
A16: 00001060 | B16: Romero Romero, Alexander Marco | C16: Técnico | D16: Plazo indeterminado | E16: 1994-07-21 | G16: 1971-04-04 | H16: M | I16: Local 3 | J16: Gerencia 2 | K16: 5832 | L16: 583
A17: 00001090 | B17: Castro Quispe, Martín Francisco | C17: Profesional | D17: Plazo indeterminado | E17: 1994-09-11 | G17: 1970-11-15 | H17: M | I17: Local 3 | J17: Gerencia 1 | K17: 9920 | L17: 595
A18: 00001105 | B18: Quispe Figueroa, Ian Paolo | C18: Profesional | D18: Plazo indeterminado | E18: 1994-10-06 | G18: 1970-01-16 | H18: M | I18: Local 3 | J18: Gerencia 2 | K18: 7574 | L18: 379
A19: 00001147 | B19: Jara Romero, Luis Marcelo | C19: Técnico | D19: Plazo indeterminado | E19: 1995-01-14 | G19: 1972-10-08 | H19: M | I19: Local 2 | J19: Gerencia 5 | K19: 3970 | L19: 357
A20: 00001170 | B20: Díaz Luna, Abril Maite | C20: Técnico | D20: Plazo indeterminado | E20: 1995-07-14 | G20: 1968-03-20 | H20: F | I20: Local 3 | J20: Gerencia 2 | K20: 4148 | L20: 207
A21: 00001199 | B21: Domínguez Castillo, Mario Bautista | C21: Profesional | D21: Plazo indeterminado | E21: 1995-08-26 | G21: 1963-07-25 | H21: M | I21: Local 3 | J21: Gerencia 2 | K21: 8047 | L21: 644
A22: 00001221 | B22: Juárez Herrera, José Felipe | C22: Técnico | D22: Plazo indeterminado | E22: 1995-10-24 | G22: 1971-02-24 | H22: M | I22: Local 3 | J22: Gerencia 5 | K22: 2934 | L22: 176
A23: 00001230 | B23: Vega Romero, Sarah Maite | C23: Profesional | D23: Plazo indeterminado | E23: 1996-03-13 | G23: 1970-06-29 | H23: F | I23: Local 1 | J23: Gerencia 4 | K23: 8793 | L23: 879
A24: 00001280 | B24: Romero Soto, Bruno Marco | C24: Profesional | D24: Plazo indeterminado | E24: 1996-03-26 | G24: 1966-05-09 | H24: M | I24: Local 3 | J24: Gerencia 3 | K24: 9664 | L24: 966
A25: 00001285 | B25: Herrera Guerrero, Alexander Francisco | C25: Profesional | D25: Plazo indeterminado | E25: 1996-06-08 | G25: 1972-03-07 | H25: M | I25: Local 3 | J25: Gerencia 5 | K25: 5147 | L25: 412
A26: 00001303 | B26: Pereyra Torres, Jesús Luis | C26: Técnico | D26: Plazo indeterminado | E26: 1996-06-29 | G26: 1972-07-15 | H26: M | I26: Local 1 | J26: Gerencia 3 | K26: 3632 | L26: 327
A27: 00001340 | B27: Ortiz Gómez, Lucas Fabio | C27: Profesional | D27: Plazo indeterminado | E27: 1996-11-13 | G27: 1970-03-13 | H27: M | I27: Local 2 | J27: Gerencia 4 | K27: 9564 | L27: 956
A28: 00001357 | B28: Ramos Tapia, Felipe Iker | C28: Técnico | D28: Plazo indeterminado | E28: 1997-03-11 | G28: 1971-08-30 | H28: M | I28: Local 3 | J28: Gerencia 5 | K28: 3778 | L28: 264
A29: 00001383 | B29: Cortés Quispe, Héctor Samuel | C29: Profesional | D29: Plazo indeterminado | E29: 1997-03-17 | G29: 1973-09-16 | H29: M | I29: Local 3 | J29: Gerencia 1 | K29: 8898 | L29: 445
A30: 00001396 | B30: Rojas Vera, Alonso Ricardo | C30: Profesional | D30: Plazo indeterminado | E30: 1997-03-25 | G30: 1973-04-22 | H30: M | I30: Local 3 | J30: Gerencia 2 | K30: 6787 | L30: 679
A31: 00001408 | B31: López Gutiérrez, Lucía Nicole | C31: Ejecutivo | D31: Plazo indeterminado | E31: 1997-05-08 | G31: 1971-09-02 | H31: F | I31: Local 1 | J31: Gerencia 2 | K31: 16338 | L31: 1470
A32: 00001440 | B32: Ramírez Navarro, Paula Gabriela | C32: Profesional | D32: Plazo indeterminado | E32: 1997-06-18 | G32: 1969-04-24 | H32: F | I32: Local 1 | J32: Gerencia 1 | K32: 8513 | L32: 851
A33: 00001480 | B33: Guzmán Chávez, César Felipe | C33: Profesional | D33: Plazo indeterminado | E33: 1997-09-14 | G33: 1973-03-17 | H33: M | I33: Local 3 | J33: Gerencia 1 | K33: 7124 | L33: 570
A34: 00001499 | B34: Paredes Godoy, Pedro Jesús | C34: Técnico | D34: Plazo indeterminado | E34: 1997-11-08 | G34: 1970-08-26 | H34: M | I34: Local 2 | J34: Gerencia 5 | K34: 2954 | L34: 207
A35: 00001504 | B35: Castro Blanco, Olivia Alexandra | C35: Técnico | D35: Plazo indeterminado | E35: 1997-11-22 | G35: 1969-12-10 | H35: F | I35: Local 1 | J35: Gerencia 5 | K35: 4583 | L35: 458
A36: 00001539 | B36: Aguilera Carvajal, Antonio Javier | C36: Técnico | D36: Plazo indeterminado | E36: 1998-01-01 | G36: 1965-09-19 | H36: M | I36: Local 3 | J36: Gerencia 1 | K36: 4767 | L36: 286
A37: 00001583 | B37: Godoy Villalba, Mario Ian | C37: Técnico | D37: Plazo indeterminado | E37: 1998-03-21 | G37: 1974-07-17 | H37: M | I37: Local 2 | J37: Gerencia 5 | K37: 4054 | L37: 243
A38: 00001606 | B38: Godoy Reyes, José Ignacio | C38: Técnico | D38: Plazo indeterminado | E38: 1998-04-15 | G38: 1971-10-07 | H38: M | I38: Local 2 | J38: Gerencia 4 | K38: 3505 | L38: 210
A39: 00001623 | B39: Ortega Gómez, Carlos Francisco | C39: Técnico | D39: Plazo indeterminado | E39: 1998-06-25 | G39: 1967-01-21 | H39: M | I39: Local 2 | J39: Gerencia 5 | K39: 5535 | L39: 332
A40: 00001646 | B40: Martín Torres, Pedro Francisco | C40: Profesional | D40: Plazo indeterminado | E40: 1998-07-23 | G40: 1969-10-25 | H40: M | I40: Local 1 | J40: Gerencia 2 | K40: 6912 | L40: 484
A41: 00001694 | B41: Romero Vargas, Arturo André | C41: Ejecutivo | D41: Plazo indeterminado | E41: 1998-08-02 | G41: 1968-06-04 | H41: M | I41: Local 1 | J41: Gerencia 1 | K41: 14264 | L41: 1712
A42: 00001711 | B42: Villalba Flores, Héctor Hugo | C42: Técnico | D42: Plazo indeterminado | E42: 1999-01-14 | G42: 1965-12-23 | H42: M | I42: Local 3 | J42: Gerencia 3 | K42: 5793 | L42: 348
A43: 00001723 | B43: Bustos Poblete, Carla Fernanda | C43: Técnico | D43: Plazo indeterminado | E43: 1999-03-09 | G43: 1974-09-14 | H43: F | I43: Local 2 | J43: Gerencia 1 | K43: 3043 | L43: 274
A44: 00001738 | B44: Flores Ramos, Rafael Álvaro | C44: Profesional | D44: Plazo indeterminado | E44: 1999-03-18 | G44: 1971-04-12 | H44: M | I44: Local 2 | J44: Gerencia 5 | K44: 8801 | L44: 440
A45: 00001744 | B45: Gómez Toledo, Micaela Alessandra | C45: Ejecutivo | D45: Plazo indeterminado | E45: 1999-05-02 | G45: 1967-04-02 | H45: F | I45: Local 1 | J45: Gerencia 1 | K45: 21350 | L45: 2776
A46: 00001749 | B46: Fernández Mamani, Adrián Thiago | C46: Profesional | D46: Plazo indeterminado | E46: 1999-05-18 | G46: 1976-07-31 | H46: M | I46: Local 1 | J46: Gerencia 3 | K46: 8475 | L46: 509
A47: 00001769 | B47: Bravo Arias, Javier Nicolás | C47: Profesional | D47: Plazo indeterminado | E47: 1999-05-25 | G47: 1975-03-05 | H47: M | I47: Local 3 | J47: Gerencia 5 | K47: 8257 | L47: 661
A48: 00001777 | B48: Montenegro Campos, Victoria Valeria | C48: Técnico | D48: Plazo indeterminado | E48: 1999-06-01 | G48: 1974-02-14 | H48: F | I48: Local 2 | J48: Gerencia 3 | K48: 2821 | L48: 197
A49: 00001797 | B49: Coronel Vázquez, Sara Florencia | C49: Técnico | D49: Plazo indeterminado | E49: 1999-07-05 | G49: 1965-04-18 | H49: F | I49: Local 2 | J49: Gerencia 1 | K49: 3538 | L49: 248
A50: 00001803 | B50: Núñez Saavedra, Alonso Adrián | C50: Técnico | D50: Plazo indeterminado | E50: 1999-07-24 | G50: 1970-04-07 | H50: M | I50: Local 1 | J50: Gerencia 1 | K50: 5853 | L50: 293
A51: 00001810 | B51: Quispe Torres, Martina Antonella | C51: Profesional | D51: Plazo indeterminado | E51: 1999-08-25 | G51: 1968-02-16 | H51: F | I51: Local 2 | J51: Gerencia 2 | K51: 5779 | L51: 578
A52: 00001827 | B52: Contreras López, Gonzalo Jesús | C52: Profesional | D52: Plazo indeterminado | E52: 1999-09-05 | G52: 1976-09-01 | H52: M | I52: Local 1 | J52: Gerencia 2 | K52: 9842 | L52: 984
A53: 00001837 | B53: Araya Herrera, Alonso Nicolás | C53: Profesional | D53: Plazo indeterminado | E53: 1999-09-08 | G53: 1975-06-04 | H53: M | I53: Local 2 | J53: Gerencia 3 | K53: 5584 | L53: 391
A54: 00001857 | B54: Navarro Pino, Carolina Alma | C54: Técnico | D54: Plazo indeterminado | E54: 1999-11-28 | G54: 1968-06-03 | H54: F | I54: Local 2 | J54: Gerencia 1 | K54: 3429 | L54: 274
A55: 00001872 | B55: Vázquez Soria, Sofía | C55: Técnico | D55: Plazo indeterminado | E55: 1999-12-21 | G55: 1976-07-30 | H55: F | I55: Local 1 | J55: Gerencia 2 | K55: 3045 | L55: 213
A56: 00001884 | B56: García Godoy, Fabio Álvaro | C56: Técnico | D56: Plazo indeterminado | E56: 1999-12-30 | G56: 1976-04-30 | H56: M | I56: Local 2 | J56: Gerencia 2 | K56: 4896 | L56: 441
A57: 00001892 | B57: Carvajal García, Pablo Ángel | C57: Técnico | D57: Plazo indeterminado | E57: 2000-01-10 | G57: 1977-10-05 | H57: M | I57: Local 2 | J57: Gerencia 3 | K57: 3476 | L57: 243
A58: 00001898 | B58: Romero Roldán, Alessandra Nicole | C58: Técnico | D58: Plazo indeterminado | E58: 2000-02-10 | G58: 1964-05-23 | H58: F | I58: Local 2 | J58: Gerencia 1 | K58: 3849 | L58: 385
A59: 00001906 | B59: Yáñez Ramírez, Gonzalo Alejandro | C59: Profesional | D59: Plazo indeterminado | E59: 2000-02-13 | G59: 1976-12-10 | H59: M | I59: Local 1 | J59: Gerencia 3 | K59: 9411 | L59: 659
A60: 00001921 | B60: Rojas Díaz, Josefa Manuela | C60: Técnico | D60: Plazo indeterminado | E60: 2000-03-04 | G60: 1977-05-03 | H60: F | I60: Local 3 | J60: Gerencia 1 | K60: 3439 | L60: 172
A61: 00001934 | B61: Jiménez Miranda, Valentina Liz | C61: Técnico | D61: Plazo indeterminado | E61: 2000-03-14 | G61: 1970-01-15 | H61: F | I61: Local 2 | J61: Gerencia 2 | K61: 3003 | L61: 150
A62: 00001948 | B62: Benítez Reyes, Ignacio Mateo | C62: Ejecutivo | D62: Plazo indeterminado | E62: 2000-04-02 | G62: 1962-04-01 | H62: M | I62: Local 2 | J62: Gerencia 3 | K62: 19549 | L62: 1955
A63: 00001966 | B63: Acosta Lucero, Fabio Hugo | C63: Técnico | D63: Plazo indeterminado | E63: 2000-04-21 | G63: 1972-01-31 | H63: M | I63: Local 3 | J63: Gerencia 4 | K63: 3654 | L63: 256
A64: 00001975 | B64: Díaz Godoy, Sebastián Renzo | C64: Profesional | D64: Plazo indeterminado | E64: 2000-05-09 | G64: 1971-02-06 | H64: M | I64: Local 1 | J64: Gerencia 2 | K64: 7553 | L64: 529
A65: 00001994 | B65: Acosta Parra, Arturo Javier | C65: Técnico | D65: Plazo indeterminado | E65: 2000-05-23 | G65: 1968-11-14 | H65: M | I65: Local 3 | J65: Gerencia 2 | K65: 4442 | L65: 267
A66: 00002001 | B66: Muñoz Pino, Carolina Andrea | C66: Técnico | D66: Plazo indeterminado | E66: 2000-07-18 | G66: 1974-03-11 | H66: F | I66: Local 2 | J66: Gerencia 2 | K66: 4677 | L66: 421
A67: 00002013 | B67: Reyes Tapia, Fernanda Micaela | C67: Profesional | D67: Plazo indeterminado | E67: 2000-09-15 | G67: 1974-02-14 | H67: F | I67: Local 1 | J67: Gerencia 3 | K67: 5890 | L67: 412
A68: 00002019 | B68: Bravo Moyano, Mario Bautista | C68: Profesional | D68: Plazo indeterminado | E68: 2000-09-24 | G68: 1969-04-24 | H68: M | I68: Local 1 | J68: Gerencia 4 | K68: 6802 | L68: 544
A69: 00002039 | B69: Hernández Carrasco, Carla Samantha | C69: Técnico | D69: Plazo indeterminado | E69: 2000-09-26 | G69: 1977-04-25 | H69: F | I69: Local 2 | J69: Gerencia 1 | K69: 4206 | L69: 421
A70: 00002058 | B70: Figueroa San Martín, Paolo Javier | C70: Técnico | D70: Plazo indeterminado | E70: 2000-10-02 | G70: 1977-02-03 | H70: M | I70: Local 3 | J70: Gerencia 4 | K70: 4296 | L70: 215
A71: 00002077 | B71: Sánchez Mendoza, Salvador Nicolás | C71: Técnico | D71: Plazo indeterminado | E71: 2000-10-08 | G71: 1968-06-30 | H71: M | I71: Local 2 | J71: Gerencia 1 | K71: 3105 | L71: 155
A72: 00002091 | B72: Carvajal Valdez, Renzo Rodrigo | C72: Profesional | D72: Plazo indeterminado | E72: 2000-10-13 | G72: 1966-01-08 | H72: M | I72: Local 2 | J72: Gerencia 1 | K72: 6373 | L72: 446
A73: 00002100 | B73: Coronel Mansilla, Mauricio Juan | C73: Profesional | D73: Plazo indeterminado | E73: 2000-12-14 | G73: 1973-07-20 | H73: M | I73: Local 1 | J73: Gerencia 5 | K73: 7810 | L73: 781
A74: 00002111 | B74: Vázquez Aguirre, Mabel Raquel | C74: Técnico | D74: Plazo indeterminado | E74: 2001-01-24 | G74: 1972-01-10 | H74: F | I74: Local 1 | J74: Gerencia 1 | K74: 3115 | L74: 156
A75: 00002131 | B75: Leguizamón Leiva, Pablo Benjamín | C75: Profesional | D75: Plazo indeterminado | E75: 2001-02-17 | G75: 1972-05-11 | H75: M | I75: Local 2 | J75: Gerencia 3 | K75: 5352 | L75: 375
A76: 00002145 | B76: Vargas Rodríguez, Adrián Rafael | C76: Técnico | D76: Plazo indeterminado | E76: 2001-07-13 | G76: 1975-12-23 | H76: M | I76: Local 2 | J76: Gerencia 2 | K76: 4438 | L76: 311
A77: 00002159 | B77: Muñoz Parra, Matías Francisco | C77: Profesional | D77: Plazo indeterminado | E77: 2001-07-25 | G77: 1976-06-17 | H77: M | I77: Local 2 | J77: Gerencia 4 | K77: 6921 | L77: 692
A78: 00002164 | B78: Jiménez Vargas, Matías Ricardo | C78: Ejecutivo | D78: Plazo indeterminado | E78: 2001-08-28 | G78: 1965-12-18 | H78: M | I78: Local 2 | J78: Gerencia 3 | K78: 18717 | L78: 1497
A79: 00002174 | B79: Quispe Mansilla, Victoria Valentina | C79: Alta Gerencia | D79: Plazo indeterminado | E79: 2001-11-21 | G79: 1975-03-13 | H79: F | I79: Local 1 | J79: Gerencia 1 | K79: 21706 | L79: 2171
A80: 00002189 | B80: Valdés Fernández, Ramón Agustín | C80: Técnico | D80: Plazo indeterminado | E80: 2001-11-28 | G80: 1963-07-30 | H80: M | I80: Local 3 | J80: Gerencia 3 | K80: 5932 | L80: 297
A81: 00002209 | B81: Herrera Molina, Abril Josefa | C81: Técnico | D81: Plazo indeterminado | E81: 2001-11-30 | G81: 1967-05-05 | H81: F | I81: Local 3 | J81: Gerencia 2 | K81: 4569 | L81: 228
A82: 00002217 | B82: Garrido Flores, Vicente Carlos | C82: Profesional | D82: Plazo indeterminado | E82: 2002-01-09 | G82: 1955-10-16 | H82: M | I82: Local 2 | J82: Gerencia 2 | K82: 7276 | L82: 509
A83: 00002236 | B83: Montenegro Henríquez, Carlos Antonio | C83: Profesional | D83: Plazo indeterminado | E83: 2002-01-20 | G83: 1970-08-19 | H83: M | I83: Local 3 | J83: Gerencia 3 | K83: 6214 | L83: 559
A84: 00002251 | B84: Martínez Benítez, Josefa Giovanna | C84: Profesional | D84: Plazo indeterminado | E84: 2002-01-30 | G84: 1973-01-23 | H84: F | I84: Local 2 | J84: Gerencia 4 | K84: 9262 | L84: 556
A85: 00002262 | B85: García Quispe, Hugo Vicente | C85: Técnico | D85: Plazo indeterminado | E85: 2002-03-21 | G85: 1955-02-09 | H85: M | I85: Local 2 | J85: Gerencia 5 | K85: 3865 | L85: 232
A86: 00002273 | B86: Olivares Arias, Benjamín Fabricio | C86: Profesional | D86: Plazo indeterminado | E86: 2002-03-30 | G86: 1978-05-08 | H86: M | I86: Local 2 | J86: Gerencia 3 | K86: 7374 | L86: 664
A87: 00002282 | B87: Villalba Pereyra, Paolo Thiago | C87: Alta Gerencia | D87: Plazo indeterminado | E87: 2002-04-04 | G87: 1966-08-02 | H87: M | I87: Local 1 | J87: Gerencia 2 | K87: 29415 | L87: 2942
A88: 00002296 | B88: Cruz Hernández, Renzo Diego | C88: Profesional | D88: Plazo indeterminado | E88: 2002-05-11 | G88: 1978-08-13 | H88: M | I88: Local 2 | J88: Gerencia 4 | K88: 7299 | L88: 657
A89: 00002311 | B89: Sosa Cedeño, Juan Fabián | C89: Profesional | D89: Plazo indeterminado | E89: 2002-06-10 | G89: 1970-09-29 | H89: M | I89: Local 1 | J89: Gerencia 3 | K89: 8674 | L89: 434
A90: 00002320 | B90: Miranda Fermín, Joaquín Dylan | C90: Profesional | D90: Plazo indeterminado | E90: 2002-06-12 | G90: 1969-10-19 | H90: M | I90: Local 2 | J90: Gerencia 1 | K90: 9692 | L90: 969
A91: 00002337 | B91: García Paredes, Ximena Valeria | C91: Técnico | D91: Plazo indeterminado | E91: 2002-06-21 | G91: 1962-04-13 | H91: F | I91: Local 3 | J91: Gerencia 2 | K91: 3779 | L91: 340
A92: 00002346 | B92: Espinoza Muñoz, Mateo Rafael | C92: Técnico | D92: Plazo indeterminado | E92: 2002-07-03 | G92: 1969-04-27 | H92: M | I92: Local 2 | J92: Gerencia 4 | K92: 2875 | L92: 144
A93: 00002353 | B93: Chávez López, Julia Maya | C93: Técnico | D93: Plazo indeterminado | E93: 2002-07-31 | G93: 1966-02-21 | H93: F | I93: Local 2 | J93: Gerencia 3 | K93: 3495 | L93: 280
A94: 00002359 | B94: Navarro Salazar, Santino Alonso | C94: Técnico | D94: Plazo indeterminado | E94: 2002-08-15 | G94: 1978-11-14 | H94: M | I94: Local 2 | J94: Gerencia 4 | K94: 3079 | L94: 154
A95: 00002367 | B95: Díaz García, Joaquín Fabio | C95: Técnico | D95: Plazo indeterminado | E95: 2002-09-21 | G95: 1970-09-23 | H95: M | I95: Local 1 | J95: Gerencia 2 | K95: 5575 | L95: 390
A96: 00002374 | B96: Sosa Álvarez, Sara Julia | C96: Técnico | D96: Plazo indeterminado | E96: 2003-01-01 | G96: 1975-06-26 | H96: F | I96: Local 2 | J96: Gerencia 4 | K96: 5565 | L96: 390
A97: 00002390 | B97: Miranda Gómez, Benjamín André | C97: Técnico | D97: Plazo indeterminado | E97: 2003-01-20 | G97: 1972-12-27 | H97: M | I97: Local 2 | J97: Gerencia 5 | K97: 5029 | L97: 402
A98: 00002396 | B98: Flores Torres, Camila Florencia | C98: Técnico | D98: Plazo indeterminado | E98: 2003-01-26 | G98: 1978-04-02 | H98: F | I98: Local 2 | J98: Gerencia 3 | K98: 3855 | L98: 308
A99: 00002416 | B99: Quispe Ojeda, Joaquín Marco | C99: Profesional | D99: Plazo indeterminado | E99: 2003-01-28 | G99: 1973-09-08 | H99: M | I99: Local 2 | J99: Gerencia 2 | K99: 7332 | L99: 587
A100: 00002423 | B100: Álvarez Hernández, Samantha Mia | C100: Técnico | D100: Plazo indeterminado | E100: 2003-01-28 | G100: 1980-10-14 | H100: F | I100: Local 1 | J100: Gerencia 1 | K100: 5091 | L100: 305
A101: 00002440 | B101: Ramos Rojas, Milagros Martina | C101: Técnico | D101: Plazo indeterminado | E101: 2003-02-05 | G101: 1968-07-16 | H101: F | I101: Local 2 | J101: Gerencia 4 | K101: 3550 | L101: 355
A102: 00002460 | B102: Lagos Ramos, Rodrigo Ramón | C102: Ejecutivo | D102: Plazo indeterminado | E102: 2003-02-15 | G102: 1972-10-15 | H102: M | I102: Local 1 | J102: Gerencia 2 | K102: 12292 | L102: 1598
A103: 00002472 | B103: Martín Fernández, Santino Ricardo | C103: Técnico | D103: Plazo indeterminado | E103: 2003-02-21 | G103: 1975-04-02 | H103: M | I103: Local 3 | J103: Gerencia 3 | K103: 5388 | L103: 539
A104: 00002485 | B104: Escobar Cáceres, Ricardo Jesús | C104: Profesional | D104: Plazo indeterminado | E104: 2003-03-15 | G104: 1979-04-23 | H104: M | I104: Local 3 | J104: Gerencia 2 | K104: 5341 | L104: 267
A105: 00002502 | B105: Ruiz Castillo, Adrián Juan | C105: Profesional | D105: Plazo indeterminado | E105: 2003-04-04 | G105: 1978-09-18 | H105: M | I105: Local 3 | J105: Gerencia 2 | K105: 6280 | L105: 628
A106: 00002521 | B106: Fermín Rivera, Adrián Carlos | C106: Técnico | D106: Plazo indeterminado | E106: 2003-04-26 | G106: 1970-11-27 | H106: M | I106: Local 1 | J106: Gerencia 3 | K106: 3053 | L106: 183
A107: 00002533 | B107: Vega Díaz, David Samuel | C107: Técnico | D107: Plazo indeterminado | E107: 2003-05-19 | G107: 1979-02-03 | H107: M | I107: Local 1 | J107: Gerencia 3 | K107: 3697 | L107: 259
A108: 00002553 | B108: Montenegro Paz, Marco Fabio | C108: Técnico | D108: Plazo indeterminado | E108: 2003-05-30 | G108: 1979-10-31 | H108: M | I108: Local 3 | J108: Gerencia 4 | K108: 4479 | L108: 358
A109: 00002573 | B109: Fermín Olivares, José Agustín | C109: Profesional | D109: Plazo indeterminado | E109: 2003-06-04 | G109: 1977-05-06 | H109: M | I109: Local 3 | J109: Gerencia 2 | K109: 9049 | L109: 814
A110: 00002578 | B110: Ramírez Castro, Adrián Fabián | C110: Técnico | D110: Plazo indeterminado | E110: 2003-06-07 | G110: 1963-10-10 | H110: M | I110: Local 2 | J110: Gerencia 2 | K110: 5615 | L110: 281
A111: 00002588 | B111: Quispe Escobar, Luis César | C111: Técnico | D111: Plazo indeterminado | E111: 2003-07-09 | G111: 1979-11-25 | H111: M | I111: Local 1 | J111: Gerencia 5 | K111: 4000 | L111: 200
A112: 00002602 | B112: Muñoz Aguirre, Arturo Diego | C112: Profesional | D112: Plazo indeterminado | E112: 2003-07-27 | G112: 1974-11-10 | H112: M | I112: Local 2 | J112: Gerencia 4 | K112: 6331 | L112: 506
A113: 00002615 | B113: Flores González, Elizabeth Julieta | C113: Técnico | D113: Plazo indeterminado | E113: 2003-08-04 | G113: 1969-02-02 | H113: F | I113: Local 3 | J113: Gerencia 3 | K113: 4775 | L113: 239
A114: 00002620 | B114: Gómez Godoy, Franco César | C114: Técnico | D114: Plazo indeterminado | E114: 2003-08-07 | G114: 1965-05-12 | H114: M | I114: Local 2 | J114: Gerencia 1 | K114: 5430 | L114: 543
A115: 00002639 | B115: Medina Valdez, Joaquín Maximiliano | C115: Técnico | D115: Plazo indeterminado | E115: 2003-08-30 | G115: 1974-09-06 | H115: M | I115: Local 1 | J115: Gerencia 3 | K115: 2926 | L115: 146
A116: 00002656 | B116: Ramírez Medina, Santino Arturo | C116: Técnico | D116: Plazo indeterminado | E116: 2003-10-09 | G116: 1977-02-22 | H116: M | I116: Local 2 | J116: Gerencia 3 | K116: 4942 | L116: 346
A117: 00002663 | B117: Franco Moyano, Fabio Antonio | C117: Técnico | D117: Plazo indeterminado | E117: 2003-10-23 | G117: 1969-09-22 | H117: M | I117: Local 2 | J117: Gerencia 5 | K117: 5060 | L117: 455
A118: 00002675 | B118: Domínguez Ruiz, Amanda Naomi | C118: Técnico | D118: Plazo indeterminado | E118: 2004-01-05 | G118: 1971-08-02 | H118: F | I118: Local 3 | J118: Gerencia 4 | K118: 4125 | L118: 206
A119: 00002680 | B119: Vera Martín, Santiago Fabio | C119: Profesional | D119: Plazo indeterminado | E119: 2004-02-22 | G119: 1970-07-16 | H119: M | I119: Local 3 | J119: Gerencia 3 | K119: 9720 | L119: 778
A120: 00002691 | B120: Salinas Ledesma, Gabriel José | C120: Profesional | D120: Plazo indeterminado | E120: 2004-02-26 | G120: 1980-06-04 | H120: M | I120: Local 3 | J120: Gerencia 5 | K120: 6093 | L120: 487
A121: 00002699 | B121: Rojas Méndez, Fabián André | C121: Alta Gerencia | D121: Plazo indeterminado | E121: 2004-03-06 | G121: 1981-05-02 | H121: M | I121: Local 1 | J121: Gerencia General | K121: 36000 | L121: 5040
A122: 00002714 | B122: Sánchez Vargas, Agustín Thiago | C122: Técnico | D122: Plazo indeterminado | E122: 2004-04-14 | G122: 1970-05-10 | H122: M | I122: Local 3 | J122: Gerencia 5 | K122: 3253 | L122: 228
A123: 00002733 | B123: Cruz Sáez, Bautista Paolo | C123: Profesional | D123: Plazo indeterminado | E123: 2004-05-15 | G123: 1970-06-15 | H123: M | I123: Local 3 | J123: Gerencia 4 | K123: 9739 | L123: 584
A124: 00002745 | B124: Chávez Coronel, Nicolás Rodrigo | C124: Técnico | D124: Plazo indeterminado | E124: 2004-06-05 | G124: 1971-01-05 | H124: M | I124: Local 3 | J124: Gerencia 3 | K124: 4294 | L124: 429
A125: 00002761 | B125: Rodríguez Rodríguez, André Ian | C125: Profesional | D125: Plazo indeterminado | E125: 2004-08-24 | G125: 1979-06-06 | H125: M | I125: Local 3 | J125: Gerencia 1 | K125: 9509 | L125: 856
A126: 00002773 | B126: Pérez Rojas, Antonio Rafael | C126: Profesional | D126: Plazo indeterminado | E126: 2004-09-06 | G126: 1976-08-31 | H126: M | I126: Local 3 | J126: Gerencia 3 | K126: 7294 | L126: 729
A127: 00002780 | B127: Vidal Muñoz, María Carolina | C127: Técnico | D127: Plazo indeterminado | E127: 2004-09-28 | G127: 1981-10-30 | H127: F | I127: Local 1 | J127: Gerencia General | K127: 5973 | L127: 418
A128: 00002793 | B128: Sepúlveda Ramírez, Pedro Ian | C128: Profesional | D128: Plazo indeterminado | E128: 2004-10-01 | G128: 1965-11-18 | H128: M | I128: Local 2 | J128: Gerencia 4 | K128: 6764 | L128: 609
A129: 00002813 | B129: Gutiérrez Aguilera, Ricardo Ramón | C129: Profesional | D129: Plazo indeterminado | E129: 2004-10-11 | G129: 1976-01-29 | H129: M | I129: Local 3 | J129: Gerencia 5 | K129: 6132 | L129: 491
A130: 00002824 | B130: Díaz Pérez, Luisa Agustina | C130: Técnico | D130: Plazo indeterminado | E130: 2004-10-30 | G130: 1980-11-15 | H130: F | I130: Local 2 | J130: Gerencia 2 | K130: 3562 | L130: 321
A131: 00002833 | B131: Navarro Zúñiga, Jesús Benjamín | C131: Alta Gerencia | D131: Plazo indeterminado | E131: 2004-10-31 | G131: 1970-01-08 | H131: M | I131: Local 1 | J131: Gerencia 3 | K131: 26317 | L131: 3948
A132: 00002839 | B132: Sáez Flores, Isidora Isabella | C132: Profesional | D132: Plazo indeterminado | E132: 2004-11-24 | G132: 1973-05-14 | H132: F | I132: Local 1 | J132: Gerencia 5 | K132: 6370 | L132: 573
A133: 00002851 | B133: Jiménez Salazar, Antonella Naomi | C133: Técnico | D133: Plazo indeterminado | E133: 2004-12-07 | G133: 1971-03-25 | H133: F | I133: Local 1 | J133: Gerencia 5 | K133: 3670 | L133: 294
A134: 00002868 | B134: Ramírez Méndez, Bruno Ricardo | C134: Ejecutivo | D134: Plazo indeterminado | E134: 2004-12-08 | G134: 1972-12-13 | H134: M | I134: Local 3 | J134: Gerencia 5 | K134: 21873 | L134: 2625
A135: 00002879 | B135: Garrido Flores, Bruno Francisco | C135: Profesional | D135: Plazo indeterminado | E135: 2004-12-24 | G135: 1982-10-13 | H135: M | I135: Local 3 | J135: Gerencia 5 | K135: 6787 | L135: 339
A136: 00002886 | B136: Ferreyra Cardozo, Alexandra Salomé | C136: Técnico | D136: Plazo indeterminado | E136: 2005-02-27 | G136: 1982-05-15 | H136: F | I136: Local 2 | J136: Gerencia 4 | K136: 2961 | L136: 207
A137: 00002905 | B137: Quispe Rodríguez, Ignacio Samuel | C137: Profesional | D137: Plazo indeterminado | E137: 2005-03-06 | G137: 1972-05-08 | H137: M | I137: Local 3 | J137: Gerencia 5 | K137: 9807 | L137: 490
A138: 00002920 | B138: Castro Bustos, Paula Alma | C138: Profesional | D138: Plazo indeterminado | E138: 2005-03-08 | G138: 1978-02-14 | H138: F | I138: Local 1 | J138: Gerencia 3 | K138: 8048 | L138: 724
A139: 00002936 | B139: Escobar Navarrete, José Martín | C139: Técnico | D139: Plazo indeterminado | E139: 2005-04-12 | G139: 1980-08-11 | H139: M | I139: Local 3 | J139: Gerencia 5 | K139: 4799 | L139: 384
A140: 00002946 | B140: Donoso Moreno, Héctor Jesús | C140: Técnico | D140: Plazo indeterminado | E140: 2005-04-29 | G140: 1970-09-03 | H140: M | I140: Local 2 | J140: Gerencia 3 | K140: 4331 | L140: 390
A141: 00002957 | B141: Mamani Silva, Bruno Santiago | C141: Técnico | D141: Plazo indeterminado | E141: 2005-05-09 | G141: 1980-01-29 | H141: M | I141: Local 2 | J141: Gerencia 2 | K141: 4816 | L141: 385
A142: 00002967 | B142: Ruiz Quispe, Alondra Andrea | C142: Técnico | D142: Plazo indeterminado | E142: 2005-05-22 | G142: 1981-03-13 | H142: F | I142: Local 3 | J142: Gerencia 3 | K142: 4876 | L142: 244
A143: 00002983 | B143: Ramos Parra, Pedro Lucas | C143: Técnico | D143: Plazo indeterminado | E143: 2005-05-25 | G143: 1981-05-10 | H143: M | I143: Local 1 | J143: Gerencia 1 | K143: 5081 | L143: 457
A144: 00002992 | B144: Tapia Romero, Marco Ángel | C144: Profesional | D144: Plazo indeterminado | E144: 2005-07-01 | G144: 1976-12-17 | H144: M | I144: Local 3 | J144: Gerencia 4 | K144: 9705 | L144: 485
A145: 00002999 | B145: González Alvarado, Arturo Marco | C145: Técnico | D145: Plazo indeterminado | E145: 2005-07-04 | G145: 1965-03-22 | H145: M | I145: Local 3 | J145: Gerencia 5 | K145: 4149 | L145: 249
A146: 00003010 | B146: Gutiérrez Barrios, Mauricio André | C146: Técnico | D146: Plazo indeterminado | E146: 2005-07-10 | G146: 1972-09-25 | H146: M | I146: Local 2 | J146: Gerencia 3 | K146: 4328 | L146: 303
A147: 00003029 | B147: Molina Figueroa, Héctor Diego | C147: Técnico | D147: Plazo indeterminado | E147: 2005-07-15 | G147: 1969-07-18 | H147: M | I147: Local 2 | J147: Gerencia 5 | K147: 4254 | L147: 255
A148: 00003040 | B148: Gómez Vázquez, Salvador Lucas | C148: Profesional | D148: Plazo indeterminado | E148: 2005-07-28 | G148: 1969-06-25 | H148: M | I148: Local 1 | J148: Gerencia 4 | K148: 9532 | L148: 572
A149: 00003060 | B149: Morales Muñoz, Luis Mario | C149: Profesional | D149: Plazo indeterminado | E149: 2005-07-28 | G149: 1969-09-09 | H149: M | I149: Local 3 | J149: Gerencia 3 | K149: 6303 | L149: 630
A150: 00003072 | B150: Alarcón Muñoz, Benjamín Marcelo | C150: Técnico | D150: Plazo indeterminado | E150: 2005-09-03 | G150: 1981-06-08 | H150: M | I150: Local 1 | J150: Gerencia 4 | K150: 3356 | L150: 235
A151: 00003090 | B151: Gómez Maldonado, Benjamín César | C151: Técnico | D151: Plazo indeterminado | E151: 2005-10-04 | G151: 1968-01-18 | H151: M | I151: Local 3 | J151: Gerencia 1 | K151: 4153 | L151: 374
A152: 00003100 | B152: Castro Silva, Florencia Alondra | C152: Técnico | D152: Plazo indeterminado | E152: 2005-10-04 | G152: 1980-07-21 | H152: F | I152: Local 3 | J152: Gerencia 2 | K152: 5419 | L152: 542
A153: 00003119 | B153: Bustamante Vázquez, Andrés Diego | C153: Profesional | D153: Plazo indeterminado | E153: 2005-11-18 | G153: 1971-07-03 | H153: M | I153: Local 2 | J153: Gerencia 3 | K153: 9246 | L153: 647
A154: 00003126 | B154: Quispe Castillo, Pedro Franco | C154: Profesional | D154: Plazo indeterminado | E154: 2005-12-08 | G154: 1972-04-09 | H154: M | I154: Local 3 | J154: Gerencia 1 | K154: 6159 | L154: 493
A155: 00003141 | B155: Ramos Escobar, Emily Victoria | C155: Técnico | D155: Plazo indeterminado | E155: 2005-12-11 | G155: 1974-06-06 | H155: F | I155: Local 3 | J155: Gerencia 5 | K155: 5718 | L155: 572
A156: 00003161 | B156: García Vera, Héctor Marcelo | C156: Técnico | D156: Plazo indeterminado | E156: 2005-12-12 | G156: 1975-01-05 | H156: M | I156: Local 1 | J156: Gerencia 1 | K156: 3711 | L156: 186
A157: 00003168 | B157: Campos Espinosa, Fabio Daniel | C157: Técnico | D157: Plazo indeterminado | E157: 2005-12-19 | G157: 1978-11-07 | H157: M | I157: Local 3 | J157: Gerencia 2 | K157: 5642 | L157: 451
A158: 00003178 | B158: Núñez Gallardo, Nicolás Fabián | C158: Técnico | D158: Plazo indeterminado | E158: 2005-12-24 | G158: 1979-12-28 | H158: M | I158: Local 3 | J158: Gerencia 1 | K158: 4442 | L158: 311
A159: 00003196 | B159: Gutiérrez Mansilla, Antonella Valeria | C159: Técnico | D159: Plazo indeterminado | E159: 2005-12-28 | G159: 1975-04-26 | H159: F | I159: Local 3 | J159: Gerencia 5 | K159: 4477 | L159: 448
A160: 00003215 | B160: Maidana Silva, Agustín Marco | C160: Profesional | D160: Plazo indeterminado | E160: 2006-01-15 | G160: 1980-09-30 | H160: M | I160: Local 2 | J160: Gerencia 3 | K160: 9908 | L160: 694
A161: 00003220 | B161: Jiménez Hernández, María Agustina | C161: Técnico | D161: Plazo indeterminado | E161: 2006-01-30 | G161: 1981-07-02 | H161: F | I161: Local 3 | J161: Gerencia 1 | K161: 3499 | L161: 280
A162: 00003234 | B162: Rojas Rojas, André Daniel | C162: Profesional | D162: Plazo indeterminado | E162: 2006-03-13 | G162: 1979-12-16 | H162: M | I162: Local 2 | J162: Gerencia 1 | K162: 6304 | L162: 630
A163: 00003251 | B163: Cabrera Cáceres, David Álvaro | C163: Técnico | D163: Plazo indeterminado | E163: 2006-03-28 | G163: 1965-07-28 | H163: M | I163: Local 2 | J163: Gerencia 5 | K163: 3614 | L163: 361
A164: 00003264 | B164: Gutiérrez Jaramillo, David Mateo | C164: Técnico | D164: Plazo indeterminado | E164: 2006-04-21 | G164: 1978-10-18 | H164: M | I164: Local 1 | J164: Gerencia 3 | K164: 4545 | L164: 227
A165: 00003278 | B165: Cedeño García, Gabriel Agustín | C165: Ejecutivo | D165: Plazo indeterminado | E165: 2006-05-01 | G165: 1971-02-12 | H165: M | I165: Local 1 | J165: Gerencia 1 | K165: 18799 | L165: 1880
A166: 00003297 | B166: Sánchez Alarcón, Daniela Alma | C166: Técnico | D166: Plazo indeterminado | E166: 2006-05-24 | G166: 1976-01-22 | H166: F | I166: Local 3 | J166: Gerencia 1 | K166: 4713 | L166: 377
A167: 00003310 | B167: Carrizo Cruz, Ariana Liz | C167: Profesional | D167: Plazo indeterminado | E167: 2006-06-11 | G167: 1980-09-18 | H167: F | I167: Local 1 | J167: Gerencia 2 | K167: 7411 | L167: 593
A168: 00003320 | B168: Flores Vargas, Alessandra Manuela | C168: Profesional | D168: Plazo indeterminado | E168: 2006-06-27 | G168: 1979-11-23 | H168: F | I168: Local 1 | J168: Gerencia 1 | K168: 5920 | L168: 474
A169: 00003330 | B169: Ruiz Rojas, Mabel Emma | C169: Técnico | D169: Plazo indeterminado | E169: 2006-07-19 | G169: 1971-02-19 | H169: F | I169: Local 3 | J169: Gerencia 5 | K169: 5558 | L169: 556
A170: 00003336 | B170: Velázquez Ferreyra, Daniel Pablo | C170: Profesional | D170: Plazo indeterminado | E170: 2006-08-30 | G170: 1980-03-17 | H170: M | I170: Local 2 | J170: Gerencia 1 | K170: 8575 | L170: 772
A171: 00003349 | B171: Ferrari Morales, Alexander Felipe | C171: Profesional | D171: Plazo indeterminado | E171: 2006-08-31 | G171: 1974-11-14 | H171: M | I171: Local 3 | J171: Gerencia 3 | K171: 7349 | L171: 514
A172: 00003361 | B172: Jiménez Escobar, Bautista Renzo | C172: Profesional | D172: Plazo indeterminado | E172: 2006-09-05 | G172: 1977-08-04 | H172: M | I172: Local 3 | J172: Gerencia 1 | K172: 5811 | L172: 407
A173: 00003370 | B173: Soria Ruiz, Alonso Ignacio | C173: Técnico | D173: Plazo indeterminado | E173: 2006-10-16 | G173: 1981-10-26 | H173: M | I173: Local 2 | J173: Gerencia 2 | K173: 5551 | L173: 389
A174: 00003382 | B174: Cortés Contreras, Alexander Marco | C174: Profesional | D174: Plazo indeterminado | E174: 2006-12-02 | G174: 1966-11-01 | H174: M | I174: Local 2 | J174: Gerencia 1 | K174: 7878 | L174: 551
A175: 00003387 | B175: Cortés Sandoval, María Salomé | C175: Técnico | D175: Plazo indeterminado | E175: 2006-12-16 | G175: 1982-08-29 | H175: F | I175: Local 1 | J175: Gerencia 1 | K175: 3529 | L175: 282
A176: 00003402 | B176: Chávez Soto, Luis Antonio | C176: Técnico | D176: Plazo indeterminado | E176: 2006-12-26 | G176: 1975-08-30 | H176: M | I176: Local 1 | J176: Gerencia 5 | K176: 4563 | L176: 319
A177: 00003421 | B177: Reyes Mamani, Isabella Emma | C177: Profesional | D177: Plazo indeterminado | E177: 2007-01-03 | G177: 1965-07-18 | H177: F | I177: Local 1 | J177: Gerencia 4 | K177: 7555 | L177: 756
A178: 00003432 | B178: Salazar Bravo, Giovanna Alexandra | C178: Técnico | D178: Plazo indeterminado | E178: 2007-01-27 | G178: 1977-08-14 | H178: F | I178: Local 2 | J178: Gerencia 2 | K178: 5373 | L178: 269
A179: 00003442 | B179: Olivares Sáez, Natalia Liz | C179: Técnico | D179: Plazo indeterminado | E179: 2007-02-06 | G179: 1968-06-11 | H179: F | I179: Local 1 | J179: Gerencia 2 | K179: 5957 | L179: 596
A180: 00003450 | B180: Torres Quispe, Gabriela Sofía | C180: Técnico | D180: Plazo indeterminado | E180: 2007-02-16 | G180: 1957-04-10 | H180: F | I180: Local 3 | J180: Gerencia 4 | K180: 4608 | L180: 461
A181: 00003464 | B181: Fermín Rojas, Raquel Sarah | C181: Ejecutivo | D181: Plazo indeterminado | E181: 2007-03-05 | G181: 1976-01-17 | H181: F | I181: Local 1 | J181: Gerencia 3 | K181: 15333 | L181: 1380
A182: 00003473 | B182: García Figueroa, Agustín Daniel | C182: Ejecutivo | D182: Plazo indeterminado | E182: 2007-03-31 | G182: 1970-04-09 | H182: M | I182: Local 1 | J182: Gerencia 2 | K182: 10320 | L182: 826
A183: 00003488 | B183: Méndez Jaramillo, Juan Héctor | C183: Técnico | D183: Plazo indeterminado | E183: 2007-05-07 | G183: 1980-11-24 | H183: M | I183: Local 2 | J183: Gerencia 3 | K183: 2960 | L183: 207
A184: 00003495 | B184: Cortés Jaramillo, Andrés Tomás | C184: Técnico | D184: Plazo indeterminado | E184: 2007-06-09 | G184: 1979-08-19 | H184: M | I184: Local 3 | J184: Gerencia 5 | K184: 4666 | L184: 420
A185: 00003514 | B185: Rojas Guzmán, Bruno Ian | C185: Profesional | D185: Plazo indeterminado | E185: 2007-06-15 | G185: 1971-09-30 | H185: M | I185: Local 3 | J185: Gerencia 3 | K185: 6816 | L185: 682
A186: 00003531 | B186: Figueroa Luna, Carlos Jerónimo | C186: Profesional | D186: Plazo indeterminado | E186: 2007-07-17 | G186: 1974-01-26 | H186: M | I186: Local 1 | J186: Gerencia 1 | K186: 5544 | L186: 277
A187: 00003538 | B187: Vega Cáceres, Marco Pedro | C187: Ejecutivo | D187: Plazo indeterminado | E187: 2007-07-22 | G187: 1982-03-19 | H187: M | I187: Local 2 | J187: Gerencia 4 | K187: 13585 | L187: 1087
A188: 00003555 | B188: Álvarez Morales, Elizabeth Concepción | C188: Técnico | D188: Plazo indeterminado | E188: 2007-09-12 | G188: 1984-07-22 | H188: F | I188: Local 3 | J188: Gerencia 4 | K188: 5674 | L188: 454
A189: 00003569 | B189: Quispe Romero, Raquel Fernanda | C189: Técnico | D189: Plazo indeterminado | E189: 2007-09-18 | G189: 1976-02-04 | H189: F | I189: Local 2 | J189: Gerencia 1 | K189: 3814 | L189: 305
A190: 00003588 | B190: Hernández Díaz, Paula Alondra | C190: Técnico | D190: Plazo indeterminado | E190: 2007-11-03 | G190: 1977-08-17 | H190: F | I190: Local 2 | J190: Gerencia 4 | K190: 3534 | L190: 283
A191: 00003604 | B191: Ortega Navarro, Valentina Mariana | C191: Técnico | D191: Plazo indeterminado | E191: 2007-11-22 | G191: 1981-10-22 | H191: F | I191: Local 1 | J191: Gerencia 4 | K191: 5995 | L191: 360
A192: 00003610 | B192: Cortés Quispe, Rafael Jesús | C192: Profesional | D192: Plazo indeterminado | E192: 2008-01-21 | G192: 1968-12-25 | H192: M | I192: Local 1 | J192: Gerencia 2 | K192: 5829 | L192: 408
A193: 00003625 | B193: Martínez Valenzuela, Fabián Rafael | C193: Técnico | D193: Plazo indeterminado | E193: 2008-01-24 | G193: 1977-10-11 | H193: M | I193: Local 3 | J193: Gerencia 1 | K193: 5376 | L193: 538
A194: 00003644 | B194: Bustamante Ledesma, Emilia Ximena | C194: Técnico | D194: Plazo indeterminado | E194: 2008-02-23 | G194: 1983-01-25 | H194: F | I194: Local 3 | J194: Gerencia 2 | K194: 4316 | L194: 302
A195: 00003662 | B195: Vargas López, Bernardo | C195: Técnico | D195: Plazo indeterminado | E195: 2008-03-13 | G195: 1976-10-14 | H195: M | I195: Local 3 | J195: Gerencia 2 | K195: 5187 | L195: 415
A196: 00003668 | B196: Leguizamón Fernández, Salvador Benjamín | C196: Técnico | D196: Plazo indeterminado | E196: 2008-03-22 | G196: 1966-10-13 | H196: M | I196: Local 3 | J196: Gerencia 1 | K196: 3192 | L196: 160
A197: 00003680 | B197: Rojas Aravena, Thiago Daniel | C197: Profesional | D197: Plazo indeterminado | E197: 2008-04-05 | G197: 1974-02-18 | H197: M | I197: Local 3 | J197: Gerencia 4 | K197: 7097 | L197: 568
A198: 00003685 | B198: Flores Aguirre, Concepción Camila | C198: Técnico | D198: Plazo indeterminado | E198: 2008-04-07 | G198: 1972-10-24 | H198: F | I198: Local 3 | J198: Gerencia 4 | K198: 4149 | L198: 415
A199: 00003695 | B199: Gómez Sandoval, Nicole Valentina | C199: Técnico | D199: Plazo indeterminado | E199: 2008-04-08 | G199: 1970-09-25 | H199: F | I199: Local 2 | J199: Gerencia 4 | K199: 3828 | L199: 345
A200: 00003700 | B200: Arce Farías, Noemí Julia | C200: Técnico | D200: Plazo indeterminado | E200: 2008-04-21 | G200: 1982-11-12 | H200: F | I200: Local 3 | J200: Gerencia 5 | K200: 3619 | L200: 326
... 201 more rows

Sheet Ejemplo sin macros
B1: Datos de Trabajadores
B4: Código | C4: Apellidos, Nombres | D4: Cargo | E4: Monto | F4: Fecha Nacimiento | G4: Sexo | H4: Local | I4: Centro de Costo | J4: Condición
B5: 00002019 | C5: vasda | D5: =VLOOKUP('BD Personal'!B17,'BD Personal'!$B$2:$L$401,2,FALSE) -> Profesional | E5: =VLOOKUP('BD Personal'!B17,'BD Personal'!$B$2:$L$401,4,FALSE) -> 34588 | F5: =VLOOKUP('BD Personal'!$B17,'BD Personal'!$B$2:$L$401,6,FALSE) -> 1970-11-15 | G5: =VLOOKUP('BD Personal'!$B17,'BD Personal'!$B$2:$L$401,7,FALSE) -> M | H5: =VLOOKUP('BD Personal'!$B17,'BD Personal'!$B$2:$L$401,8,FALSE) -> Local 3 | I5: =IFERROR(VLOOKUP('BD Personal'!$B17,'BD Personal'!$B$2:$L$401,99,FALSE), "Errado") -> Errado | J5: =IFERROR(E5>=35000," ") -> FALSE | L5: Función II: Verificar Fórmulas
B6: 00002851 | C6: =VLOOKUP('BD Personal'!B29,'BD Personal'!B29:L428,1,FALSE) -> Cortés Quispe, Héctor Samuel | D6: =VLOOKUP('BD Personal'!B29,'BD Personal'!$B$2:$L$401,2,FALSE) -> Profesional | E6: =VLOOKUP('BD Personal'!B29,'BD Personal'!$B$2:$L$401,4,FALSE) -> 35506 | F6: =VLOOKUP('BD Personal'!$B29,'BD Personal'!$B$2:$L$401,6,FALSE) -> 1973-09-16 | G6: =VLOOKUP('BD Personal'!$B29,'BD Personal'!$B$2:$L$401,7,FALSE) -> M | H6: =VLOOKUP('BD Personal'!$B29,'BD Personal'!$B$2:$L$401,8,FALSE) -> Local 3 | I6: =VLOOKUP('BD Personal'!$B29,'BD Personal'!$B$2:$L$401,9,FALSE) -> Gerencia 1 | J6: =IFERROR(E6>=35000," ") -> TRUE
B7: 00000536 | C7: =VLOOKUP('BD Personal'!B3,'BD Personal'!B3:L402,1,FALSE) -> Díaz García, Alexander Pedro | D7: =VLOOKUP('BD Personal'!B3,'BD Personal'!$B$2:$L$401,2,FALSE) -> Profesional | E7: =VLOOKUP('BD Personal'!B3,'BD Personal'!$B$2:$L$401,4,FALSE) -> 31630 | F7: =VLOOKUP('BD Personal'!$B3,'BD Personal'!$B$2:$L$401,6,FALSE) -> 1962-12-05 | G7: =VLOOKUP('BD Personal'!$B3,'BD Personal'!$B$2:$L$401,7,FALSE) -> M | H7: =VLOOKUP('BD Personal'!$B3,'BD Personal'!$B$2:$L$401,8,FALSE) -> Local 1 | I7: =VLOOKUP('BD Personal'!$B3,'BD Personal'!$B$2:$L$401,9,FALSE) -> Gerencia General | J7: =IFERROR(E7>=35000," ") -> FALSE
B8: 00002311 | C8: =VLOOKUP('BD Personal'!B20,'BD Personal'!B20:L419,1,FALSE) -> Díaz Luna, Abril Maite | D8: =VLOOKUP('BD Personal'!B20,'BD Personal'!$B$2:$L$401,2,FALSE) -> Técnico | E8: =VLOOKUP('BD Personal'!B20,'BD Personal'!$B$2:$L$401,4,FALSE) -> 34894 | F8: =VLOOKUP('BD Personal'!$B20,'BD Personal'!$B$2:$L$401,6,FALSE) -> 1968-03-20 | G8: =VLOOKUP('BD Personal'!$B20,'BD Personal'!$B$2:$L$401,7,FALSE) -> F | H8: =VLOOKUP('BD Personal'!$B20,'BD Personal'!$B$2:$L$401,8,FALSE) -> Local 3 | I8: =VLOOKUP('BD Personal'!$B20,'BD Personal'!$B$2:$L$401,9,FALSE) -> Gerencia 2 | J8: =IFERROR(E8>=35000," ") -> FALSE
B9: 00001803 | C9: =VLOOKUP('BD Personal'!B11,'BD Personal'!B11:L410,1,FALSE) -> Díaz Saavedra, Álvaro Marcelo | D9: =VLOOKUP('BD Personal'!B11,'BD Personal'!$B$2:$L$401,2,FALSE) -> Técnico | E9: =VLOOKUP('BD Personal'!B11,'BD Personal'!$B$2:$L$401,4,FALSE) -> 34086 | F9: =VLOOKUP('BD Personal'!$B11,'BD Personal'!$B$2:$L$401,6,FALSE) -> 1963-12-13 | G9: =VLOOKUP('BD Personal'!$B11,'BD Personal'!$B$2:$L$401,7,FALSE) -> M | H9: =VLOOKUP('BD Personal'!$B11,'BD Personal'!$B$2:$L$401,8,FALSE) -> Local 2 | I9: =VLOOKUP('BD Personal'!$B11,'BD Personal'!$B$2:$L$401,9,FALSE) -> Gerencia 5 | J9: =IFERROR(E9>=35000," ") -> FALSE
B10: 00002367 | C10: =VLOOKUP('BD Personal'!B21,'BD Personal'!B21:L420,1,FALSE) -> Domínguez Castillo, Mario Bautista | D10: =VLOOKUP('BD Personal'!B21,'BD Personal'!$B$2:$L$401,2,FALSE) -> Profesional | E10: =VLOOKUP('BD Personal'!B21,'BD Personal'!$B$2:$L$401,4,FALSE) -> 34937 | F10: =VLOOKUP('BD Personal'!$B21,'BD Personal'!$B$2:$L$401,6,FALSE) -> 1963-07-25 | G10: =VLOOKUP('BD Personal'!$B21,'BD Personal'!$B$2:$L$401,7,FALSE) -> M | H10: =VLOOKUP('BD Personal'!$B21,'BD Personal'!$B$2:$L$401,8,FALSE) -> Local 3 | I10: =VLOOKUP('BD Personal'!$B21,'BD Personal'!$B$2:$L$401,9,FALSE) -> Gerencia 2 | J10: =IFERROR(E10>=35000," ") -> FALSE
B11: 00001749 | C11: =VLOOKUP('BD Personal'!B10,'BD Personal'!B10:L409,1,FALSE) -> Espinosa Ferreyra, José Fabricio | D11: =VLOOKUP('BD Personal'!B10,'BD Personal'!$B$2:$L$401,2,FALSE) -> Profesional | E11: =VLOOKUP('BD Personal'!B10,'BD Personal'!$B$2:$L$401,4,FALSE) -> 33912 | F11: =VLOOKUP('BD Personal'!$B10,'BD Personal'!$B$2:$L$401,6,FALSE) -> 1967-12-22 | G11: =VLOOKUP('BD Personal'!$B10,'BD Personal'!$B$2:$L$401,7,FALSE) -> M | H11: =VLOOKUP('BD Personal'!$B10,'BD Personal'!$B$2:$L$401,8,FALSE) -> Local 3 | I11: =VLOOKUP('BD Personal'!$B10,'BD Personal'!$B$2:$L$401,9,FALSE) -> Gerencia 2 | J11: =IFERROR(E11>=35000," ") -> FALSE | M11: Función I: Condición
B12: 00000965 | C12: =VLOOKUP('BD Personal'!B4,'BD Personal'!B4:L403,1,FALSE) -> Farías Rodríguez, Santiago Dylan | D12: =VLOOKUP('BD Personal'!B4,'BD Personal'!$B$2:$L$401,2,FALSE) -> Técnico | E12: =VLOOKUP('BD Personal'!B4,'BD Personal'!$B$2:$L$401,4,FALSE) -> 32327 | F12: =VLOOKUP('BD Personal'!$B4,'BD Personal'!$B$2:$L$401,6,FALSE) -> 1962-09-21 | G12: =VLOOKUP('BD Personal'!$B4,'BD Personal'!$B$2:$L$401,7,FALSE) -> M | H12: =VLOOKUP('BD Personal'!$B4,'BD Personal'!$B$2:$L$401,8,FALSE) -> Local 2 | I12: =VLOOKUP('BD Personal'!$B4,'BD Personal'!$B$2:$L$401,9,FALSE) -> Gerencia 3 | J12: =IFERROR(E12>=35000," ") -> FALSE
B13: 00001872 | C13: =VLOOKUP('BD Personal'!B13,'BD Personal'!B13:L412,1,FALSE) -> Flores Miranda, Daniela Ramona | D13: =VLOOKUP('BD Personal'!B13,'BD Personal'!$B$2:$L$401,2,FALSE) -> Profesional | E13: =VLOOKUP('BD Personal'!B13,'BD Personal'!$B$2:$L$401,4,FALSE) -> 34338 | F13: =VLOOKUP('BD Personal'!$B13,'BD Personal'!$B$2:$L$401,6,FALSE) -> 1968-01-03 | G13: =VLOOKUP('BD Personal'!$B13,'BD Personal'!$B$2:$L$401,7,FALSE) -> F | H13: =VLOOKUP('BD Personal'!$B13,'BD Personal'!$B$2:$L$401,8,FALSE) -> Local 2 | I13: =VLOOKUP('BD Personal'!$B13,'BD Personal'!$B$2:$L$401,9,FALSE) -> Gerencia 2 | J13: =IFERROR(E13>=35000," ") -> FALSE
B14: 00002588 | C14: =VLOOKUP('BD Personal'!B25,'BD Personal'!B25:L424,1,FALSE) -> Herrera Guerrero, Alexander Francisco | D14: =VLOOKUP('BD Personal'!B25,'BD Personal'!$B$2:$L$401,2,FALSE) -> Profesional | E14: =VLOOKUP('BD Personal'!B25,'BD Personal'!$B$2:$L$401,4,FALSE) -> 35224 | F14: =VLOOKUP('BD Personal'!$B25,'BD Personal'!$B$2:$L$401,6,FALSE) -> 1972-03-07 | G14: =VLOOKUP('BD Personal'!$B25,'BD Personal'!$B$2:$L$401,7,FALSE) -> M | H14: =VLOOKUP('BD Personal'!$B25,'BD Personal'!$B$2:$L$401,8,FALSE) -> Local 3 | I14: =VLOOKUP('BD Personal'!$B25,'BD Personal'!$B$2:$L$401,9,FALSE) -> Gerencia 5 | J14: =IFERROR(E14>=35000," ") -> TRUE
B15: 00002111 | C15: =VLOOKUP('BD Personal'!B19,'BD Personal'!B19:L418,1,FALSE) -> Jara Romero, Luis Marcelo | D15: =VLOOKUP('BD Personal'!B19,'BD Personal'!$B$2:$L$401,2,FALSE) -> Técnico | E15: =VLOOKUP('BD Personal'!B19,'BD Personal'!$B$2:$L$401,4,FALSE) -> 34713 | F15: =VLOOKUP('BD Personal'!$B19,'BD Personal'!$B$2:$L$401,6,FALSE) -> 1972-10-08 | G15: =VLOOKUP('BD Personal'!$B19,'BD Personal'!$B$2:$L$401,7,FALSE) -> M | H15: =VLOOKUP('BD Personal'!$B19,'BD Personal'!$B$2:$L$401,8,FALSE) -> Local 2 | I15: =VLOOKUP('BD Personal'!$B19,'BD Personal'!$B$2:$L$401,9,FALSE) -> Gerencia 5 | J15: =IFERROR(E15>=35000," ") -> FALSE
B16: 00002423 | C16: =VLOOKUP('BD Personal'!B22,'BD Personal'!B22:L421,1,FALSE) -> Juárez Herrera, José Felipe | D16: =VLOOKUP('BD Personal'!B22,'BD Personal'!$B$2:$L$401,2,FALSE) -> Técnico | E16: =VLOOKUP('BD Personal'!B22,'BD Personal'!$B$2:$L$401,4,FALSE) -> 34996 | F16: =VLOOKUP('BD Personal'!$B22,'BD Personal'!$B$2:$L$401,6,FALSE) -> 1971-02-24 | G16: =VLOOKUP('BD Personal'!$B22,'BD Personal'!$B$2:$L$401,7,FALSE) -> M | H16: =VLOOKUP('BD Personal'!$B22,'BD Personal'!$B$2:$L$401,8,FALSE) -> Local 3 | I16: =VLOOKUP('BD Personal'!$B22,'BD Personal'!$B$2:$L$401,9,FALSE) -> Gerencia 5 | J16: =IFERROR(E16>=35000," ") -> FALSE
B17: 00001504 | C17: =VLOOKUP('BD Personal'!B8,'BD Personal'!B8:L407,1,FALSE) -> Mendoza Silva, Benjamín Fabián | D17: =VLOOKUP('BD Personal'!B8,'BD Personal'!$B$2:$L$401,2,FALSE) -> Técnico | E17: =VLOOKUP('BD Personal'!B8,'BD Personal'!$B$2:$L$401,4,FALSE) -> 33841 | F17: =VLOOKUP('BD Personal'!$B8,'BD Personal'!$B$2:$L$401,6,FALSE) -> 1963-04-17 | G17: =VLOOKUP('BD Personal'!$B8,'BD Personal'!$B$2:$L$401,7,FALSE) -> M | H17: =VLOOKUP('BD Personal'!$B8,'BD Personal'!$B$2:$L$401,8,FALSE) -> Local 3 | I17: =VLOOKUP('BD Personal'!$B8,'BD Personal'!$B$2:$L$401,9,FALSE) -> Gerencia 5 | J17: =IFERROR(E17>=35000," ") -> FALSE
B18: 00001906 | C18: =VLOOKUP('BD Personal'!B14,'BD Personal'!B14:L413,1,FALSE) -> Mendoza Venegas, Salomé Fernanda | D18: =VLOOKUP('BD Personal'!B14,'BD Personal'!$B$2:$L$401,2,FALSE) -> Técnico | E18: =VLOOKUP('BD Personal'!B14,'BD Personal'!$B$2:$L$401,4,FALSE) -> 34359 | F18: =VLOOKUP('BD Personal'!$B14,'BD Personal'!$B$2:$L$401,6,FALSE) -> 1969-08-01 | G18: =VLOOKUP('BD Personal'!$B14,'BD Personal'!$B$2:$L$401,7,FALSE) -> F | H18: =VLOOKUP('BD Personal'!$B14,'BD Personal'!$B$2:$L$401,8,FALSE) -> Local 3 | I18: =VLOOKUP('BD Personal'!$B14,'BD Personal'!$B$2:$L$401,9,FALSE) -> Gerencia 4 | J18: =IFERROR(E18>=35000," ") -> FALSE
B19: 00001827 | C19: =VLOOKUP('BD Personal'!B12,'BD Personal'!B12:L411,1,FALSE) -> Morales Riquelme, Sofía Milagros | D19: =VLOOKUP('BD Personal'!B12,'BD Personal'!$B$2:$L$401,2,FALSE) -> Profesional | E19: =VLOOKUP('BD Personal'!B12,'BD Personal'!$B$2:$L$401,4,FALSE) -> 34202 | F19: =VLOOKUP('BD Personal'!$B12,'BD Personal'!$B$2:$L$401,6,FALSE) -> 1966-08-23 | G19: =VLOOKUP('BD Personal'!$B12,'BD Personal'!$B$2:$L$401,7,FALSE) -> F | H19: =VLOOKUP('BD Personal'!$B12,'BD Personal'!$B$2:$L$401,8,FALSE) -> Local 1 | I19: =VLOOKUP('BD Personal'!$B12,'BD Personal'!$B$2:$L$401,9,FALSE) -> Gerencia 5 | J19: =IFERROR(E19>=35000," ") -> FALSE
B20: 00002780 | C20: =VLOOKUP('BD Personal'!B27,'BD Personal'!B27:L426,1,FALSE) -> Ortiz Gómez, Lucas Fabio | D20: =VLOOKUP('BD Personal'!B27,'BD Personal'!$B$2:$L$401,2,FALSE) -> Profesional | E20: =VLOOKUP('BD Personal'!B27,'BD Personal'!$B$2:$L$401,4,FALSE) -> 35382 | F20: =VLOOKUP('BD Personal'!$B27,'BD Personal'!$B$2:$L$401,6,FALSE) -> 1970-03-13 | G20: =VLOOKUP('BD Personal'!$B27,'BD Personal'!$B$2:$L$401,7,FALSE) -> M | H20: =VLOOKUP('BD Personal'!$B27,'BD Personal'!$B$2:$L$401,8,FALSE) -> Local 2 | I20: =VLOOKUP('BD Personal'!$B27,'BD Personal'!$B$2:$L$401,9,FALSE) -> Gerencia 4 | J20: =IFERROR(E20>=35000," ") -> TRUE
B21: 00000451 | C21: =VLOOKUP('BD Personal'!$B$2,'BD Personal'!$B$2:$L$401,1,FALSE) -> Parra García, Jerónimo Santiago | D21: =VLOOKUP('BD Personal'!B2,'BD Personal'!$B$2:$L$401,2,FALSE) -> Técnico | E21: =VLOOKUP('BD Personal'!B2,'BD Personal'!$B$2:$L$401,4,FALSE) -> 31053 | F21: =VLOOKUP('BD Personal'!$B2,'BD Personal'!$B$2:$L$401,6,FALSE) -> 1956-09-08 | G21: =VLOOKUP('BD Personal'!$B2,'BD Personal'!$B$2:$L$401,7,FALSE) -> M | H21: =VLOOKUP('BD Personal'!$B2,'BD Personal'!$B$2:$L$401,8,FALSE) -> Local 1 | I21: =IFERROR(VLOOKUP('BD Personal'!$B2,'BD Personal'!$B$2:$L$401,111,FALSE),"Falso") -> Falso | J21: =IFERROR(E21>=35000," ") -> FALSE
B22: 00002639 | C22: =VLOOKUP('BD Personal'!B26,'BD Personal'!B26:L425,1,FALSE) -> Pereyra Torres, Jesús Luis | D22: =VLOOKUP('BD Personal'!B26,'BD Personal'!$B$2:$L$401,2,FALSE) -> Técnico | E22: =VLOOKUP('BD Personal'!B26,'BD Personal'!$B$2:$L$401,4,FALSE) -> 35245 | F22: =VLOOKUP('BD Personal'!$B26,'BD Personal'!$B$2:$L$401,6,FALSE) -> 1972-07-15 | G22: =VLOOKUP('BD Personal'!$B26,'BD Personal'!$B$2:$L$401,7,FALSE) -> M | H22: =VLOOKUP('BD Personal'!$B26,'BD Personal'!$B$2:$L$401,8,FALSE) -> Local 1 | I22: =VLOOKUP('BD Personal'!$B26,'BD Personal'!$B$2:$L$401,9,FALSE) -> Gerencia 3 | J22: =IFERROR(E22>=35000," ") -> TRUE
B23: 00001975 | C23: =VLOOKUP('BD Personal'!B15,'BD Personal'!B15:L414,1,FALSE) -> Quiroga Bermúdez, Agustina Liz | D23: =VLOOKUP('BD Personal'!B15,'BD Personal'!$B$2:$L$401,2,FALSE) -> Técnico | E23: =VLOOKUP('BD Personal'!B15,'BD Personal'!$B$2:$L$401,4,FALSE) -> 34413 | F23: =VLOOKUP('BD Personal'!$B15,'BD Personal'!$B$2:$L$401,6,FALSE) -> 1968-05-26 | G23: =VLOOKUP('BD Personal'!$B15,'BD Personal'!$B$2:$L$401,7,FALSE) -> F | H23: =VLOOKUP('BD Personal'!$B15,'BD Personal'!$B$2:$L$401,8,FALSE) -> Local 3 | I23: =VLOOKUP('BD Personal'!$B15,'BD Personal'!$B$2:$L$401,9,FALSE) -> Gerencia 5 | J23: =IFERROR(E23>=35000," ") -> FALSE
B24: 00002100 | C24: =VLOOKUP('BD Personal'!B18,'BD Personal'!B18:L417,1,FALSE) -> Quispe Figueroa, Ian Paolo | D24: =VLOOKUP('BD Personal'!B18,'BD Personal'!$B$2:$L$401,2,FALSE) -> Profesional | E24: =VLOOKUP('BD Personal'!B18,'BD Personal'!$B$2:$L$401,4,FALSE) -> 34613 | F24: =VLOOKUP('BD Personal'!$B18,'BD Personal'!$B$2:$L$401,6,FALSE) -> 1970-01-16 | G24: =VLOOKUP('BD Personal'!$B18,'BD Personal'!$B$2:$L$401,7,FALSE) -> M | H24: =VLOOKUP('BD Personal'!$B18,'BD Personal'!$B$2:$L$401,8,FALSE) -> Local 3 | I24: =VLOOKUP('BD Personal'!$B18,'BD Personal'!$B$2:$L$401,9,FALSE) -> Gerencia 2 | J24: =IFERROR(E24>=35000," ") -> FALSE
B25: 00002839 | C25: =VLOOKUP('BD Personal'!B28,'BD Personal'!B28:L427,1,FALSE) -> Ramos Tapia, Felipe Iker | D25: =VLOOKUP('BD Personal'!B28,'BD Personal'!$B$2:$L$401,2,FALSE) -> Técnico | E25: =VLOOKUP('BD Personal'!B28,'BD Personal'!$B$2:$L$401,4,FALSE) -> 35500 | F25: =VLOOKUP('BD Personal'!$B28,'BD Personal'!$B$2:$L$401,6,FALSE) -> 1971-08-30 | G25: =VLOOKUP('BD Personal'!$B28,'BD Personal'!$B$2:$L$401,7,FALSE) -> M | H25: =VLOOKUP('BD Personal'!$B28,'BD Personal'!$B$2:$L$401,8,FALSE) -> Local 3 | I25: =VLOOKUP('BD Personal'!$B28,'BD Personal'!$B$2:$L$401,9,FALSE) -> Gerencia 5 | J25: =IFERROR(E25>=35000," ") -> TRUE
B26: 00001646 | C26: =VLOOKUP('BD Personal'!B9,'BD Personal'!B9:L408,1,FALSE) -> Rodríguez Flores, Iker Tomás | D26: =VLOOKUP('BD Personal'!B9,'BD Personal'!$B$2:$L$401,2,FALSE) -> Técnico | E26: =VLOOKUP('BD Personal'!B9,'BD Personal'!$B$2:$L$401,4,FALSE) -> 33855 | F26: =VLOOKUP('BD Personal'!$B9,'BD Personal'!$B$2:$L$401,6,FALSE) -> 1966-07-09 | G26: =VLOOKUP('BD Personal'!$B9,'BD Personal'!$B$2:$L$401,7,FALSE) -> M | H26: =VLOOKUP('BD Personal'!$B9,'BD Personal'!$B$2:$L$401,8,FALSE) -> Local 3 | I26: =VLOOKUP('BD Personal'!$B9,'BD Personal'!$B$2:$L$401,9,FALSE) -> Gerencia 2 | J26: =IFERROR(E26>=35000," ") -> FALSE
B27: 00001230 | C27: =VLOOKUP('BD Personal'!B5,'BD Personal'!B5:L404,1,FALSE) -> Rodríguez García, Santiago Rafael | D27: =VLOOKUP('BD Personal'!B5,'BD Personal'!$B$2:$L$401,2,FALSE) -> Profesional | E27: =VLOOKUP('BD Personal'!B5,'BD Personal'!$B$2:$L$401,4,FALSE) -> 32693 | F27: =VLOOKUP('BD Personal'!$B5,'BD Personal'!$B$2:$L$401,6,FALSE) -> 1961-10-31 | G27: =VLOOKUP('BD Personal'!$B5,'BD Personal'!$B$2:$L$401,7,FALSE) -> M | H27: =VLOOKUP('BD Personal'!$B5,'BD Personal'!$B$2:$L$401,8,FALSE) -> Local 2 | I27: =VLOOKUP('BD Personal'!$B5,'BD Personal'!$B$2:$L$401,9,FALSE) -> Gerencia 1 | J27: =IFERROR(E27>=35000," ") -> FALSE
B28: 00002013 | C28: =VLOOKUP('BD Personal'!B16,'BD Personal'!B16:L415,1,FALSE) -> Romero Romero, Alexander Marco | D28: =VLOOKUP('BD Personal'!B16,'BD Personal'!$B$2:$L$401,2,FALSE) -> Técnico | E28: =VLOOKUP('BD Personal'!B16,'BD Personal'!$B$2:$L$401,4,FALSE) -> 34536 | F28: =VLOOKUP('BD Personal'!$B16,'BD Personal'!$B$2:$L$401,6,FALSE) -> 1971-04-04 | G28: =VLOOKUP('BD Personal'!$B16,'BD Personal'!$B$2:$L$401,7,FALSE) -> M | H28: =VLOOKUP('BD Personal'!$B16,'BD Personal'!$B$2:$L$401,8,FALSE) -> Local 3 | I28: =VLOOKUP('BD Personal'!$B16,'BD Personal'!$B$2:$L$401,9,FALSE) -> Gerencia 2 | J28: =IFERROR(E28>=35000," ") -> FALSE
B29: 00002533 | C29: =VLOOKUP('BD Personal'!B24,'BD Personal'!B24:L423,1,FALSE) -> Romero Soto, Bruno Marco | D29: =VLOOKUP('BD Personal'!B24,'BD Personal'!$B$2:$L$401,2,FALSE) -> Profesional | E29: =VLOOKUP('BD Personal'!B24,'BD Personal'!$B$2:$L$401,4,FALSE) -> 35150 | F29: =VLOOKUP('BD Personal'!$B24,'BD Personal'!$B$2:$L$401,6,FALSE) -> 1966-05-09 | G29: =VLOOKUP('BD Personal'!$B24,'BD Personal'!$B$2:$L$401,7,FALSE) -> M | H29: =VLOOKUP('BD Personal'!$B24,'BD Personal'!$B$2:$L$401,8,FALSE) -> Local 3 | I29: =VLOOKUP('BD Personal'!$B24,'BD Personal'!$B$2:$L$401,9,FALSE) -> Gerencia 3 | J29: =IFERROR(E29>=35000," ") -> TRUE
B30: 00001303 | C30: =VLOOKUP('BD Personal'!B6,'BD Personal'!B6:L405,1,FALSE) -> Soria Fernández, Ramón Rodrigo | D30: =VLOOKUP('BD Personal'!B6,'BD Personal'!$B$2:$L$401,2,FALSE) -> Profesional | E30: =VLOOKUP('BD Personal'!B6,'BD Personal'!$B$2:$L$401,4,FALSE) -> 32752 | F30: =VLOOKUP('BD Personal'!$B6,'BD Personal'!$B$2:$L$401,6,FALSE) -> 1959-09-15 | G30: =VLOOKUP('BD Personal'!$B6,'BD Personal'!$B$2:$L$401,7,FALSE) -> M | H30: =VLOOKUP('BD Personal'!$B6,'BD Personal'!$B$2:$L$401,8,FALSE) -> Local 3 | I30: =VLOOKUP('BD Personal'!$B6,'BD Personal'!$B$2:$L$401,9,FALSE) -> Gerencia 1 | J30: =IFERROR(E30>=35000," ") -> FALSE
B31: 00001440 | C31: =VLOOKUP('BD Personal'!B7,'BD Personal'!B7:L406,1,FALSE) -> Valenzuela Núñez, Julieta Beatriz | D31: =VLOOKUP('BD Personal'!B7,'BD Personal'!$B$2:$L$401,2,FALSE) -> Profesional | E31: =VLOOKUP('BD Personal'!B7,'BD Personal'!$B$2:$L$401,4,FALSE) -> 33611 | F31: =VLOOKUP('BD Personal'!$B7,'BD Personal'!$B$2:$L$401,6,FALSE) -> 1966-05-29 | G31: =VLOOKUP('BD Personal'!$B7,'BD Personal'!$B$2:$L$401,7,FALSE) -> F | H31: =VLOOKUP('BD Personal'!$B7,'BD Personal'!$B$2:$L$401,8,FALSE) -> Local 2 | I31: =VLOOKUP('BD Personal'!$B7,'BD Personal'!$B$2:$L$401,9,FALSE) -> Gerencia 4 | J31: =IFERROR(E31>=35000," ") -> FALSE
B32: 00002521 | C32: =VLOOKUP('BD Personal'!B23,'BD Personal'!B23:L422,1,FALSE) -> Vega Romero, Sarah Maite | D32: =VLOOKUP('BD Personal'!B23,'BD Personal'!$B$2:$L$401,2,FALSE) -> Profesional | E32: =VLOOKUP('BD Personal'!B23,'BD Personal'!$B$2:$L$401,4,FALSE) -> 35137 | F32: =VLOOKUP('BD Personal'!$B23,'BD Personal'!$B$2:$L$401,6,FALSE) -> 1970-06-29 | G32: =VLOOKUP('BD Personal'!$B23,'BD Personal'!$B$2:$L$401,7,FALSE) -> F | H32: =VLOOKUP('BD Personal'!$B23,'BD Personal'!$B$2:$L$401,8,FALSE) -> Local 1 | I32: =VLOOKUP('BD Personal'!$B23,'BD Personal'!$B$2:$L$401,9,FALSE) -> Gerencia 4 | J32: =IFERROR(E32>=35000," ") -> TRUE

Sheet Ejemplo con macros
B3: Código | C3: Apellidos, Nombres | D3: Cargo | E3: Monto | F3: Fecha Nacimiento | G3: Sexo | H3: Local | I3: Centro de Costo | J3: Condición | L3: Macros | M3: Descripcion
B4: 00002019 | C4: vasda | D4: =VLOOKUP('BD Personal'!B16,'BD Personal'!$B$2:$L$401,2,FALSE) -> Técnico | E4: =VLOOKUP('BD Personal'!B16,'BD Personal'!$B$2:$L$401,4,FALSE) -> 34536 | F4: =VLOOKUP('BD Personal'!$B16,'BD Personal'!$B$2:$L$401,6,FALSE) -> 1971-04-04 | G4: =VLOOKUP('BD Personal'!$B16,'BD Personal'!$B$2:$L$401,7,FALSE) -> M | H4: =VLOOKUP('BD Personal'!$B16,'BD Personal'!$B$2:$L$401,8,FALSE) -> Local 3 | I4: =IFERROR(VLOOKUP('BD Personal'!$B17,'BD Personal'!$B$2:$L$401,9,FALSE), "Errado") -> Gerencia 1 | J4: =IFERROR(E4>=35000," ") -> FALSE | L4: Ctrl + i | M4: Función 1, condicional
B5: 00002851 | C5: =VLOOKUP('BD Personal'!B28,'BD Personal'!B28:L427,1,FALSE) -> Ramos Tapia, Felipe Iker | D5: =VLOOKUP('BD Personal'!B17,'BD Personal'!$B$2:$L$401,2,FALSE) -> Profesional | E5: =VLOOKUP('BD Personal'!B17,'BD Personal'!$B$2:$L$401,4,FALSE) -> 34588 | F5: =VLOOKUP('BD Personal'!$B17,'BD Personal'!$B$2:$L$401,6,FALSE) -> 1970-11-15 | G5: =VLOOKUP('BD Personal'!$B17,'BD Personal'!$B$2:$L$401,7,FALSE) -> M | H5: =VLOOKUP('BD Personal'!$B17,'BD Personal'!$B$2:$L$401,8,FALSE) -> Local 3 | I5: =IFERROR(VLOOKUP('BD Personal'!$B18,'BD Personal'!$B$2:$L$401,9,FALSE), "Errado") -> Gerencia 2 | J5: =IFERROR(E5>=35000," ") -> FALSE | L5: Ctrl + o | M5: Funcion 2, veracidad de fórmula
B6: 00000536 | C6: =VLOOKUP('BD Personal'!B2,'BD Personal'!B2:L401,1,FALSE) -> Parra García, Jerónimo Santiago | D6: =VLOOKUP('BD Personal'!B18,'BD Personal'!$B$2:$L$401,2,FALSE) -> Profesional | E6: =VLOOKUP('BD Personal'!B18,'BD Personal'!$B$2:$L$401,4,FALSE) -> 34613 | F6: =VLOOKUP('BD Personal'!$B18,'BD Personal'!$B$2:$L$401,6,FALSE) -> 1970-01-16 | G6: =VLOOKUP('BD Personal'!$B18,'BD Personal'!$B$2:$L$401,7,FALSE) -> M | H6: =VLOOKUP('BD Personal'!$B18,'BD Personal'!$B$2:$L$401,8,FALSE) -> Local 3 | I6: =IFERROR(VLOOKUP('BD Personal'!$B19,'BD Personal'!$B$2:$L$401,99,FALSE), "Errado") -> Errado | J6: =IFERROR(E6>=35000," ") -> FALSE | L6: Ctrl + j | M6: Función 3, veracidad de fórmula, opción erradda
B7: 00002311 | C7: =VLOOKUP('BD Personal'!B19,'BD Personal'!B19:L418,1,FALSE) -> Jara Romero, Luis Marcelo | D7: =VLOOKUP('BD Personal'!B19,'BD Personal'!$B$2:$L$401,2,FALSE) -> Técnico | E7: =VLOOKUP('BD Personal'!B19,'BD Personal'!$B$2:$L$401,4,FALSE) -> 34713 | F7: =VLOOKUP('BD Personal'!$B19,'BD Personal'!$B$2:$L$401,6,FALSE) -> 1972-10-08 | G7: =VLOOKUP('BD Personal'!$B19,'BD Personal'!$B$2:$L$401,7,FALSE) -> M | H7: =VLOOKUP('BD Personal'!$B19,'BD Personal'!$B$2:$L$401,8,FALSE) -> Local 2 | I7: =IFERROR(VLOOKUP('BD Personal'!$B20,'BD Personal'!$B$2:$L$401,9,FALSE), "Errado") -> Gerencia 2 | J7: =IFERROR(E7>=35000," ") -> FALSE
B8: 00001803 | C8: =VLOOKUP('BD Personal'!B10,'BD Personal'!B10:L409,1,FALSE) -> Espinosa Ferreyra, José Fabricio | D8: =VLOOKUP('BD Personal'!B20,'BD Personal'!$B$2:$L$401,2,FALSE) -> Técnico | E8: =VLOOKUP('BD Personal'!B20,'BD Personal'!$B$2:$L$401,4,FALSE) -> 34894 | F8: =VLOOKUP('BD Personal'!$B20,'BD Personal'!$B$2:$L$401,6,FALSE) -> 1968-03-20 | G8: =VLOOKUP('BD Personal'!$B20,'BD Personal'!$B$2:$L$401,7,FALSE) -> F | H8: =VLOOKUP('BD Personal'!$B20,'BD Personal'!$B$2:$L$401,8,FALSE) -> Local 3 | I8: =IFERROR(VLOOKUP('BD Personal'!$B21,'BD Personal'!$B$2:$L$401,99,FALSE), "Errado") -> Errado | J8: =IFERROR(E8>=35000," ") -> FALSE
B9: 00002367 | C9: =VLOOKUP('BD Personal'!B20,'BD Personal'!B20:L419,1,FALSE) -> Díaz Luna, Abril Maite | D9: =VLOOKUP('BD Personal'!B21,'BD Personal'!$B$2:$L$401,2,FALSE) -> Profesional | E9: =VLOOKUP('BD Personal'!B21,'BD Personal'!$B$2:$L$401,4,FALSE) -> 34937 | F9: =VLOOKUP('BD Personal'!$B21,'BD Personal'!$B$2:$L$401,6,FALSE) -> 1963-07-25 | G9: =VLOOKUP('BD Personal'!$B21,'BD Personal'!$B$2:$L$401,7,FALSE) -> M | H9: =VLOOKUP('BD Personal'!$B21,'BD Personal'!$B$2:$L$401,8,FALSE) -> Local 3
B10: 00001749 | C10: =VLOOKUP('BD Personal'!B9,'BD Personal'!B9:L408,1,FALSE) -> Rodríguez Flores, Iker Tomás | D10: =VLOOKUP('BD Personal'!B22,'BD Personal'!$B$2:$L$401,2,FALSE) -> Técnico | E10: =VLOOKUP('BD Personal'!B22,'BD Personal'!$B$2:$L$401,4,FALSE) -> 34996 | F10: =VLOOKUP('BD Personal'!$B22,'BD Personal'!$B$2:$L$401,6,FALSE) -> 1971-02-24 | G10: =VLOOKUP('BD Personal'!$B22,'BD Personal'!$B$2:$L$401,7,FALSE) -> M | H10: =VLOOKUP('BD Personal'!$B22,'BD Personal'!$B$2:$L$401,8,FALSE) -> Local 3
B11: 00000965 | C11: =VLOOKUP('BD Personal'!B3,'BD Personal'!B3:L402,1,FALSE) -> Díaz García, Alexander Pedro | D11: =VLOOKUP('BD Personal'!B23,'BD Personal'!$B$2:$L$401,2,FALSE) -> Profesional | E11: =VLOOKUP('BD Personal'!B23,'BD Personal'!$B$2:$L$401,4,FALSE) -> 35137 | F11: =VLOOKUP('BD Personal'!$B23,'BD Personal'!$B$2:$L$401,6,FALSE) -> 1970-06-29 | G11: =VLOOKUP('BD Personal'!$B23,'BD Personal'!$B$2:$L$401,7,FALSE) -> F | H11: =VLOOKUP('BD Personal'!$B23,'BD Personal'!$B$2:$L$401,8,FALSE) -> Local 1
B12: 00001872 | C12: =VLOOKUP('BD Personal'!B12,'BD Personal'!B12:L411,1,FALSE) -> Morales Riquelme, Sofía Milagros | D12: =VLOOKUP('BD Personal'!B24,'BD Personal'!$B$2:$L$401,2,FALSE) -> Profesional | E12: =VLOOKUP('BD Personal'!B24,'BD Personal'!$B$2:$L$401,4,FALSE) -> 35150 | F12: =VLOOKUP('BD Personal'!$B24,'BD Personal'!$B$2:$L$401,6,FALSE) -> 1966-05-09 | G12: =VLOOKUP('BD Personal'!$B24,'BD Personal'!$B$2:$L$401,7,FALSE) -> M | H12: =VLOOKUP('BD Personal'!$B24,'BD Personal'!$B$2:$L$401,8,FALSE) -> Local 3
B13: 00002588 | C13: =VLOOKUP('BD Personal'!B24,'BD Personal'!B24:L423,1,FALSE) -> Romero Soto, Bruno Marco | D13: =VLOOKUP('BD Personal'!B25,'BD Personal'!$B$2:$L$401,2,FALSE) -> Profesional | E13: =VLOOKUP('BD Personal'!B25,'BD Personal'!$B$2:$L$401,4,FALSE) -> 35224 | F13: =VLOOKUP('BD Personal'!$B25,'BD Personal'!$B$2:$L$401,6,FALSE) -> 1972-03-07 | G13: =VLOOKUP('BD Personal'!$B25,'BD Personal'!$B$2:$L$401,7,FALSE) -> M | H13: =VLOOKUP('BD Personal'!$B25,'BD Personal'!$B$2:$L$401,8,FALSE) -> Local 3
B14: 00002111 | C14: =VLOOKUP('BD Personal'!B18,'BD Personal'!B18:L417,1,FALSE) -> Quispe Figueroa, Ian Paolo | D14: =VLOOKUP('BD Personal'!B26,'BD Personal'!$B$2:$L$401,2,FALSE) -> Técnico | E14: =VLOOKUP('BD Personal'!B26,'BD Personal'!$B$2:$L$401,4,FALSE) -> 35245 | F14: =VLOOKUP('BD Personal'!$B26,'BD Personal'!$B$2:$L$401,6,FALSE) -> 1972-07-15 | G14: =VLOOKUP('BD Personal'!$B26,'BD Personal'!$B$2:$L$401,7,FALSE) -> M | H14: =VLOOKUP('BD Personal'!$B26,'BD Personal'!$B$2:$L$401,8,FALSE) -> Local 1
B15: 00002423 | C15: =VLOOKUP('BD Personal'!B21,'BD Personal'!B21:L420,1,FALSE) -> Domínguez Castillo, Mario Bautista | D15: =VLOOKUP('BD Personal'!B27,'BD Personal'!$B$2:$L$401,2,FALSE) -> Profesional | E15: =VLOOKUP('BD Personal'!B27,'BD Personal'!$B$2:$L$401,4,FALSE) -> 35382 | F15: =VLOOKUP('BD Personal'!$B27,'BD Personal'!$B$2:$L$401,6,FALSE) -> 1970-03-13 | G15: =VLOOKUP('BD Personal'!$B27,'BD Personal'!$B$2:$L$401,7,FALSE) -> M | H15: =VLOOKUP('BD Personal'!$B27,'BD Personal'!$B$2:$L$401,8,FALSE) -> Local 2
B16: 00001504 | C16: =VLOOKUP('BD Personal'!B7,'BD Personal'!B7:L406,1,FALSE) -> Valenzuela Núñez, Julieta Beatriz | D16: =VLOOKUP('BD Personal'!B28,'BD Personal'!$B$2:$L$401,2,FALSE) -> Técnico | E16: =VLOOKUP('BD Personal'!B28,'BD Personal'!$B$2:$L$401,4,FALSE) -> 35500 | F16: =VLOOKUP('BD Personal'!$B28,'BD Personal'!$B$2:$L$401,6,FALSE) -> 1971-08-30 | G16: =VLOOKUP('BD Personal'!$B28,'BD Personal'!$B$2:$L$401,7,FALSE) -> M | H16: =VLOOKUP('BD Personal'!$B28,'BD Personal'!$B$2:$L$401,8,FALSE) -> Local 3
B17: 00001906 | C17: =VLOOKUP('BD Personal'!B13,'BD Personal'!B13:L412,1,FALSE) -> Flores Miranda, Daniela Ramona | D17: =VLOOKUP('BD Personal'!B29,'BD Personal'!$B$2:$L$401,2,FALSE) -> Profesional | E17: =VLOOKUP('BD Personal'!B29,'BD Personal'!$B$2:$L$401,4,FALSE) -> 35506 | F17: =VLOOKUP('BD Personal'!$B29,'BD Personal'!$B$2:$L$401,6,FALSE) -> 1973-09-16 | G17: =VLOOKUP('BD Personal'!$B29,'BD Personal'!$B$2:$L$401,7,FALSE) -> M | H17: =VLOOKUP('BD Personal'!$B29,'BD Personal'!$B$2:$L$401,8,FALSE) -> Local 3
B18: 00001827 | C18: =VLOOKUP('BD Personal'!B11,'BD Personal'!B11:L410,1,FALSE) -> Díaz Saavedra, Álvaro Marcelo | D18: =VLOOKUP('BD Personal'!B30,'BD Personal'!$B$2:$L$401,2,FALSE) -> Profesional | E18: =VLOOKUP('BD Personal'!B30,'BD Personal'!$B$2:$L$401,4,FALSE) -> 35514 | F18: =VLOOKUP('BD Personal'!$B30,'BD Personal'!$B$2:$L$401,6,FALSE) -> 1973-04-22 | G18: =VLOOKUP('BD Personal'!$B30,'BD Personal'!$B$2:$L$401,7,FALSE) -> M | H18: =VLOOKUP('BD Personal'!$B30,'BD Personal'!$B$2:$L$401,8,FALSE) -> Local 3
B19: 00002780 | C19: =VLOOKUP('BD Personal'!B26,'BD Personal'!B26:L425,1,FALSE) -> Pereyra Torres, Jesús Luis | D19: =VLOOKUP('BD Personal'!B31,'BD Personal'!$B$2:$L$401,2,FALSE) -> Ejecutivo | E19: =VLOOKUP('BD Personal'!B31,'BD Personal'!$B$2:$L$401,4,FALSE) -> 35558 | F19: =VLOOKUP('BD Personal'!$B31,'BD Personal'!$B$2:$L$401,6,FALSE) -> 1971-09-02 | G19: =VLOOKUP('BD Personal'!$B31,'BD Personal'!$B$2:$L$401,7,FALSE) -> F | H19: =VLOOKUP('BD Personal'!$B31,'BD Personal'!$B$2:$L$401,8,FALSE) -> Local 1
B20: 00000451 | C20: =VLOOKUP('BD Personal'!$B$2,'BD Personal'!$B$2:$L$401,1,FALSE) -> Parra García, Jerónimo Santiago | D20: =VLOOKUP('BD Personal'!B32,'BD Personal'!$B$2:$L$401,2,FALSE) -> Profesional | E20: =VLOOKUP('BD Personal'!B32,'BD Personal'!$B$2:$L$401,4,FALSE) -> 35599 | F20: =VLOOKUP('BD Personal'!$B32,'BD Personal'!$B$2:$L$401,6,FALSE) -> 1969-04-24 | G20: =VLOOKUP('BD Personal'!$B32,'BD Personal'!$B$2:$L$401,7,FALSE) -> F | H20: =VLOOKUP('BD Personal'!$B32,'BD Personal'!$B$2:$L$401,8,FALSE) -> Local 1
B21: 00002639 | C21: =VLOOKUP('BD Personal'!B25,'BD Personal'!B25:L424,1,FALSE) -> Herrera Guerrero, Alexander Francisco | D21: =VLOOKUP('BD Personal'!B33,'BD Personal'!$B$2:$L$401,2,FALSE) -> Profesional | E21: =VLOOKUP('BD Personal'!B33,'BD Personal'!$B$2:$L$401,4,FALSE) -> 35687 | F21: =VLOOKUP('BD Personal'!$B33,'BD Personal'!$B$2:$L$401,6,FALSE) -> 1973-03-17 | G21: =VLOOKUP('BD Personal'!$B33,'BD Personal'!$B$2:$L$401,7,FALSE) -> M | H21: =VLOOKUP('BD Personal'!$B33,'BD Personal'!$B$2:$L$401,8,FALSE) -> Local 3
B22: 00001975 | C22: =VLOOKUP('BD Personal'!B14,'BD Personal'!B14:L413,1,FALSE) -> Mendoza Venegas, Salomé Fernanda | D22: =VLOOKUP('BD Personal'!B34,'BD Personal'!$B$2:$L$401,2,FALSE) -> Técnico | E22: =VLOOKUP('BD Personal'!B34,'BD Personal'!$B$2:$L$401,4,FALSE) -> 35742 | F22: =VLOOKUP('BD Personal'!$B34,'BD Personal'!$B$2:$L$401,6,FALSE) -> 1970-08-26 | G22: =VLOOKUP('BD Personal'!$B34,'BD Personal'!$B$2:$L$401,7,FALSE) -> M | H22: =VLOOKUP('BD Personal'!$B34,'BD Personal'!$B$2:$L$401,8,FALSE) -> Local 2
B23: 00002100 | C23: =VLOOKUP('BD Personal'!B17,'BD Personal'!B17:L416,1,FALSE) -> Castro Quispe, Martín Francisco | D23: =VLOOKUP('BD Personal'!B35,'BD Personal'!$B$2:$L$401,2,FALSE) -> Técnico | E23: =VLOOKUP('BD Personal'!B35,'BD Personal'!$B$2:$L$401,4,FALSE) -> 35756 | F23: =VLOOKUP('BD Personal'!$B35,'BD Personal'!$B$2:$L$401,6,FALSE) -> 1969-12-10 | G23: =VLOOKUP('BD Personal'!$B35,'BD Personal'!$B$2:$L$401,7,FALSE) -> F | H23: =VLOOKUP('BD Personal'!$B35,'BD Personal'!$B$2:$L$401,8,FALSE) -> Local 1
B24: 00002839 | C24: =VLOOKUP('BD Personal'!B27,'BD Personal'!B27:L426,1,FALSE) -> Ortiz Gómez, Lucas Fabio | D24: =VLOOKUP('BD Personal'!B36,'BD Personal'!$B$2:$L$401,2,FALSE) -> Técnico | E24: =VLOOKUP('BD Personal'!B36,'BD Personal'!$B$2:$L$401,4,FALSE) -> 35796 | F24: =VLOOKUP('BD Personal'!$B36,'BD Personal'!$B$2:$L$401,6,FALSE) -> 1965-09-19 | G24: =VLOOKUP('BD Personal'!$B36,'BD Personal'!$B$2:$L$401,7,FALSE) -> M | H24: =VLOOKUP('BD Personal'!$B36,'BD Personal'!$B$2:$L$401,8,FALSE) -> Local 3
B25: 00001646 | C25: =VLOOKUP('BD Personal'!B8,'BD Personal'!B8:L407,1,FALSE) -> Mendoza Silva, Benjamín Fabián | D25: =VLOOKUP('BD Personal'!B37,'BD Personal'!$B$2:$L$401,2,FALSE) -> Técnico | E25: =VLOOKUP('BD Personal'!B37,'BD Personal'!$B$2:$L$401,4,FALSE) -> 35875 | F25: =VLOOKUP('BD Personal'!$B37,'BD Personal'!$B$2:$L$401,6,FALSE) -> 1974-07-17 | G25: =VLOOKUP('BD Personal'!$B37,'BD Personal'!$B$2:$L$401,7,FALSE) -> M | H25: =VLOOKUP('BD Personal'!$B37,'BD Personal'!$B$2:$L$401,8,FALSE) -> Local 2
B26: 00001230 | C26: =VLOOKUP('BD Personal'!B4,'BD Personal'!B4:L403,1,FALSE) -> Farías Rodríguez, Santiago Dylan | D26: =VLOOKUP('BD Personal'!B38,'BD Personal'!$B$2:$L$401,2,FALSE) -> Técnico | E26: =VLOOKUP('BD Personal'!B38,'BD Personal'!$B$2:$L$401,4,FALSE) -> 35900 | F26: =VLOOKUP('BD Personal'!$B38,'BD Personal'!$B$2:$L$401,6,FALSE) -> 1971-10-07 | G26: =VLOOKUP('BD Personal'!$B38,'BD Personal'!$B$2:$L$401,7,FALSE) -> M | H26: =VLOOKUP('BD Personal'!$B38,'BD Personal'!$B$2:$L$401,8,FALSE) -> Local 2
B27: 00002013 | C27: =VLOOKUP('BD Personal'!B15,'BD Personal'!B15:L414,1,FALSE) -> Quiroga Bermúdez, Agustina Liz | D27: =VLOOKUP('BD Personal'!B39,'BD Personal'!$B$2:$L$401,2,FALSE) -> Técnico | E27: =VLOOKUP('BD Personal'!B39,'BD Personal'!$B$2:$L$401,4,FALSE) -> 35971 | F27: =VLOOKUP('BD Personal'!$B39,'BD Personal'!$B$2:$L$401,6,FALSE) -> 1967-01-21 | G27: =VLOOKUP('BD Personal'!$B39,'BD Personal'!$B$2:$L$401,7,FALSE) -> M | H27: =VLOOKUP('BD Personal'!$B39,'BD Personal'!$B$2:$L$401,8,FALSE) -> Local 2
B28: 00002533 | C28: =VLOOKUP('BD Personal'!B23,'BD Personal'!B23:L422,1,FALSE) -> Vega Romero, Sarah Maite | D28: =VLOOKUP('BD Personal'!B40,'BD Personal'!$B$2:$L$401,2,FALSE) -> Profesional | E28: =VLOOKUP('BD Personal'!B40,'BD Personal'!$B$2:$L$401,4,FALSE) -> 35999 | F28: =VLOOKUP('BD Personal'!$B40,'BD Personal'!$B$2:$L$401,6,FALSE) -> 1969-10-25 | G28: =VLOOKUP('BD Personal'!$B40,'BD Personal'!$B$2:$L$401,7,FALSE) -> M | H28: =VLOOKUP('BD Personal'!$B40,'BD Personal'!$B$2:$L$401,8,FALSE) -> Local 1
B29: 00001303 | C29: =VLOOKUP('BD Personal'!B5,'BD Personal'!B5:L404,1,FALSE) -> Rodríguez García, Santiago Rafael | D29: =VLOOKUP('BD Personal'!B41,'BD Personal'!$B$2:$L$401,2,FALSE) -> Ejecutivo | E29: =VLOOKUP('BD Personal'!B41,'BD Personal'!$B$2:$L$401,4,FALSE) -> 36009 | F29: =VLOOKUP('BD Personal'!$B41,'BD Personal'!$B$2:$L$401,6,FALSE) -> 1968-06-04 | G29: =VLOOKUP('BD Personal'!$B41,'BD Personal'!$B$2:$L$401,7,FALSE) -> M | H29: =VLOOKUP('BD Personal'!$B41,'BD Personal'!$B$2:$L$401,8,FALSE) -> Local 1
B30: 00001440 | C30: =VLOOKUP('BD Personal'!B6,'BD Personal'!B6:L405,1,FALSE) -> Soria Fernández, Ramón Rodrigo | D30: =VLOOKUP('BD Personal'!B42,'BD Personal'!$B$2:$L$401,2,FALSE) -> Técnico | E30: =VLOOKUP('BD Personal'!B42,'BD Personal'!$B$2:$L$401,4,FALSE) -> 36174 | F30: =VLOOKUP('BD Personal'!$B42,'BD Personal'!$B$2:$L$401,6,FALSE) -> 1965-12-23 | G30: =VLOOKUP('BD Personal'!$B42,'BD Personal'!$B$2:$L$401,7,FALSE) -> M | H30: =VLOOKUP('BD Personal'!$B42,'BD Personal'!$B$2:$L$401,8,FALSE) -> Local 3
B31: 00002521 | C31: =VLOOKUP('BD Personal'!B22,'BD Personal'!B22:L421,1,FALSE) -> Juárez Herrera, José Felipe | D31: =VLOOKUP('BD Personal'!B43,'BD Personal'!$B$2:$L$401,2,FALSE) -> Técnico | E31: =VLOOKUP('BD Personal'!B43,'BD Personal'!$B$2:$L$401,4,FALSE) -> 36228 | F31: =VLOOKUP('BD Personal'!$B43,'BD Personal'!$B$2:$L$401,6,FALSE) -> 1974-09-14 | G31: =VLOOKUP('BD Personal'!$B43,'BD Personal'!$B$2:$L$401,7,FALSE) -> F | H31: =VLOOKUP('BD Personal'!$B43,'BD Personal'!$B$2:$L$401,8,FALSE) -> Local 2
